{"text_format":"3","workbook":"xlsx","n_sheets":5,"sheets":["Pp3 MIR DE","Pp4 MIR GT","Listas","Base","SUSTENTO INDICADOR ATC"],"not_rendered":{"charts":1,"images":14,"macros":1,"external_links":2,"defined_names":76},"read":"whole","date_system":"1900"}

{"sheet":"Pp3 MIR DE","index":0,"n_rows":55,"n_cols":28,"rows_kept":55,"hidden":true,"merged":[[2,2,2,3],[3,2,3,3],[4,2,4,3],[5,2,5,3],[6,2,6,3],[7,2,7,3],[8,2,8,3],[9,1,10,1],[9,2,9,3],[10,2,10,3],[11,1,12,1],[11,2,11,3],[12,2,12,3],[13,1,14,1],[13,2,13,3],[14,2,14,3],[16,4,16,16],[16,17,16,25],[20,1,25,1],[26,1,30,1],[31,1,37,1],[38,1,40,1],[41,1,44,1],[45,1,48,1],[49,1,52,1]]}
[]
[{"$nulls":11},"  MATRIZ DE INDICADORES PARA RESULTADOS POR PROGRAMA "]
[null,null,"Municipio",null,"Ixtlahuacán de los Membrillos"]
[null,null,"Denominación del Programa",null,"Desarrollo Económico"]
[null,null,"Categoría programática",null,"Prestación de servicios públicos"]
[null,null,"Unidad Responsable/OPD",null,"Dirección de padrón y licencias"]
[null,null,"Finalidad",null,"Desarrollo_Económico"]
[null,null,"Función",null,"Asuntos_Económicos_Comerciales_y_Laborales_Generales"]
[null,null,"Sub-función",null,"3.1.1 Asuntos Económicos y Comerciales en General"]
[null,"Plan Nacional de Desarrollo","Alineación con objetivos superiores del PND",null,"IV.III Desarrollo económico"]
[null,null,"Alineación con objetivos secundarios del PND",null,"Objetivo 3.2 Propiciar un ambiente que incentive la formalidad y la creación de empleos y que permita mejorar las condiciones laborales para las personas trabajadoras."]
[null,"Plan Estatal de Desarrollo","Alineación con objetivos superiores del PED",null,"6.5 Desarrollo económico"]
[null,null,"Alineación con objetivos secundarios del PED",null,"Turismo"]
[null,"Plan Municipal de Desarrollo","Alineación con objetivos superiores del PMD",null,"3  Desarrollo Económico"]
[null,null,"Alineación con objetivos secundarios del PMD",null,"Incrementar el Índice de Desarrollo Económico en el Municipio."]
[]
[{"$nulls":4},"I N D I C A D O R E S",{"$nulls":12},"P R E S U P U E S T O"]
[{"$nulls":4},"Resumen Narrativo","Nombre del indicador","Definición","Dimensión","Tipo","Método de cálculo","Valor programado 1 (Numerador)","Valor programado 2 (Denominador)","Frecuencia de medición","Unidad de medida","Metas","Medios de verificación","Supuestos","Capítulo 1000","Capítulo 2000","Capítulo 3000","Capítulo 4000","Capítulo 5000","Capítulo 6000","Capítulo 7000","Capítulo 8000","Capítulo 9000",null,100]
[null,null,"Fin",null,"La población que reside en Ixtlhuacán de los Membreillos disponen de un estado de bienestar en cuatro dimensiónes; Estado de Derecho, Desarrollo Social, Desarrollo Económico y Gestión del Territorio.","INDICE Integral de Cumplimiento del Plan Municipal de Desarrollo y Gobernanza 2018-2021 (IICPMDG 1821)","Mide en el cumplimiento en cada uno de los programas presupuestarios establecidos en cada eje del PMDyG para su segumiento al cumplimiento de las metas definidas para cada unidad administrativa municipal","Eficiencia","Estratégico","IIDMt = [(IIEDSmt + IIDSmt + IIDEmt + IAGTmt) /4]",2.21,4,"Bimestral","Índice",0.55," Portal Web del Municipio página de transparencia","Se dispone de personal y recursos",{"v":1528229,"d":"$1,528,229.0"},{"v":169000,"d":"$169,000.0"},{"v":62000,"d":"$62,000.0"},{"v":0,"d":"$0.0"},{"v":0,"d":"$0.0"},{"v":0,"d":"$0.0"},{"v":0,"d":"$0.0"},{"v":0,"d":"$0.0"},{"v":0,"d":"$0.0"},{"v":1759229,"d":"$1,759,229.0"},"1.21%"]
[null,null,"Propósito",null,"Impulsar la producción, producción agropecuaria, trabajadores asegurados, y población ocupada, ","índice de desarrollo municipal del aspecto económico (IDM-E)","Mide el progreso del municipio en la dimension del desarrollo económico ","Eficiencia","Estratégico","(valor resultante de sumar los valores individuales  de  los cosientes entre sus denominadores por su ponderacion asignada, que miden las  variables de: recaudación por licencias, incremento de turistas, productividad agropecuaria, sacrificio e inspeccion de ganado, proveduria de carne, incremento en promocion economica  con su correspondientes ponderaciones de .2, .2, .2, .1, 0.15, .1  y .05)",387.43999999999994,480.87,"Bimestral","Índice",0.8," Portal Web del Municipio página de transparencia","Se dispone de personal y recursos",{"v":1528229,"d":"$1,528,229.0"},{"v":169000,"d":"$169,000.0"},{"v":62000,"d":"$62,000.0"},{"v":0,"d":"$0.0"},{"v":0,"d":"$0.0"},{"v":0,"d":"$0.0"},{"v":0,"d":"$0.0"},{"v":0,"d":"$0.0"},{"v":0,"d":"$0.0"},{"v":1759229,"d":"$1,759,229.0"}]
[null,"Economía (padrón y licencias)","Componente 1",null,"Recaudación Municipal Incrementada","Índice de ingresos por licencias municipales (I1-IILM)","Mide el incremento en la recaudación municipal por contribuciones cumplidos por la expedixion de licencias ","Eficacia","Gestión","(valor resultante de sumar los valores individuales  de  los cosientes entre sus denominadores por su ponderacion asignada, que miden las  variables de: dictamen ejecutivo, deteccion de capacidades, organizacion de padron, plan de empadronamiento e impulso la economia  con su correspondientes ponderaciones de .2, .1, .2, .2,  y .3)",54.1,142.6,"Bimestral","Índice","0.38"," Portal Web del Municipio página de transparencia","Se dispone de personal y recursos",{"v":326061,"d":"$326,061.0"},{"v":36000,"d":"$36,000.0"},{"v":6000,"d":"$6,000.0"},{"v":0,"d":"$0.0"},{"v":0,"d":"$0.0"},{"v":0,"d":"$0.0"},{"v":0,"d":"$0.0"},{"v":0,"d":"$0.0"},{"v":0,"d":"$0.0"},{"v":368061,"d":"$368,061.0"}]
[null,null,"Actividad 1.1",null,"Acelerar el análisis y dictamen para la expedición de licencias municipales que impulsen el empleo","PORCENTAJE de licencias municipales que impulsan el empleo (P101-LMIE)","Mide la cantidad de licencias municipales que fomentan el empleo permamente","Eficacia","Gestión","(Cantidad de actividades a desarrollar para establecer el procedimiento ejecutivo de revision, autorizacion o renovación de licencias municipales que fomentan el empleo formal  (10) y las que se encuentran en el empleo informal  (8) / Total de  actividades a desarrollar para establecer el procedimiento ejecutivo de revision, autorizacion o renovación de licencias municipales que fomentan el empleo formal  (10) y las que se encuentran en el empleo informal  (8) )*100",18,18,"Mensual","Porcentaje",{"v":1,"d":"100%"}," Portal Web del Municipio página de transparencia","Se dispone de personal y recursos",{"v":65212.2,"d":"65,212.2"},{"v":7200,"d":"7,200.0"},{"v":1200,"d":"1,200.0"},{"v":0,"d":"0.0"},{"v":0,"d":"0.0"},{"v":0,"d":"0.0"},{"v":0,"d":"0.0"},{"v":0,"d":"0.0"},{"v":0,"d":"0.0"},{"v":73612.2,"d":"$73,612.2"},{"v":20,"d":"$20.0"}]
[null,null,"Actividad 1.2",null,"Apoyar la detección de necesidades de capacidades desde la solicitud de licencias para enriquecer la gestión financiera del centro economico","PORCENTAJE de cumplimiento del programa de detección de necesidades (P102-CPDN)","Mide el avance en el diagnostico para detectar necesidades de capacitación","Eficacia","Gestión","(Cantidad de actividades (15) a desarrollar para detectar necesidades y elaborar  un programa de capacitacion desde la solicitud de licencia municipal por giro y de esta manera enriquecer la gestión financiera del centro economico/ Total de    actividades (15) a desarrollar para detectar necesidades de capacitacion desde la solicitud de licencia municipal por giro y de esta manera enriquecer la gestión financiera del centro economico )*100",15,15,"Mensual","Porcentaje",{"v":1,"d":"100%"}," Portal Web del Municipio página de transparencia","Se dispone de personal y recursos",{"v":48909.15,"d":"48,909.2"},{"v":5400,"d":"5,400.0"},{"v":900,"d":"900.0"},{"v":0,"d":"0.0"},{"v":0,"d":"0.0"},{"v":0,"d":"0.0"},{"v":0,"d":"0.0"},{"v":0,"d":"0.0"},{"v":0,"d":"0.0"},{"v":55209.15,"d":"$55,209.2"},{"v":15,"d":"$15.0"}]
[null,null,"Actividad 1.3",null,"Organizar el padrón de licencias municipales otorgados por giro, calles y tipo de establecimiento ","PORCENTAJE de avance en el padrón de licencias (P103-APL)","Mide el avance en organizar el padron","Eficacia","Gestión","(Cantidad de actividades (10) a desarrollar para organizar el padrón de licencias municipales otorgados por giro, calles y tipo de establecimiento  / Total de   actividades (10) a desarrollar para organizar el padrón de licencias municipales otorgados por giro, calles y tipo de establecimiento )*100",10,10,"Mensual","Porcentaje",{"v":1,"d":"100%"}," Portal Web del Municipio página de transparencia","Se dispone de personal y recursos",{"v":48909.15,"d":"48,909.2"},{"v":5400,"d":"5,400.0"},{"v":900,"d":"900.0"},{"v":0,"d":"0.0"},{"v":0,"d":"0.0"},{"v":0,"d":"0.0"},{"v":0,"d":"0.0"},{"v":0,"d":"0.0"},{"v":0,"d":"0.0"},{"v":55209.15,"d":"$55,209.2"},{"v":15,"d":"$15.0"}]
[null,null,"Actividad 1.4",null,"Plan de empadronamiento, atención, seguimiento e impulso al comercio ambulante y locatario en mercados.","PORCENTAJE de avance en el plan de empadronamiento (104-APE)","Mide el avance en el empadronamiento ordenado y diferenciado","Eficacia","Gestión","(Cantidad de actividades (10) a desarrollar para elaborar plan de empadronamiento, atención, seguimiento e impulso al comercio ambulante y locatario en mercados / Total de   actividades (10) a desarrollar para elaborar plan de empadronamiento, atención, seguimiento e impulso al comercio ambulante y locatario en mercados )*100",10,10,"Mensual","Porcentaje",{"v":1,"d":"100%"}," Portal Web del Municipio página de transparencia","Se dispone de personal y recursos",{"v":65212.2,"d":"65,212.2"},{"v":7200,"d":"7,200.0"},{"v":1200,"d":"1,200.0"},{"v":0,"d":"0.0"},{"v":0,"d":"0.0"},{"v":0,"d":"0.0"},{"v":0,"d":"0.0"},{"v":0,"d":"0.0"},{"v":0,"d":"0.0"},{"v":73612.2,"d":"$73,612.2"},{"v":20,"d":"$20.0"}]
[null,null,"Actividad 1.5",null,"Programa de actividades municipales que impulsen el comercio y la actividad económica en el municipio","PORCENTAJE de cumplimiento del programa para impulsar el comercio (P105-CPIC)","Mide el cumplimiento de actividades del programa que fomenten el comercio y la economía","Eficacia","Gestión","(Cantidad de centros económicos (150) que impulsan el comercio y la economia familiar en el municipio que pueden ser incorporados al programa de fortalecimiento economico / Total de  centros económicos (400) que impulsan el comercio y la economia familiar en el municipio )*100",150,400,"Mensual","Porcentaje",{"v":0.375,"d":"38%"}," Portal Web del Municipio página de transparencia","Se dispone de personal y recursos",{"v":97818.3,"d":"97,818.3"},{"v":10800,"d":"10,800.0"},{"v":1800,"d":"1,800.0"},{"v":0,"d":"0.0"},{"v":0,"d":"0.0"},{"v":0,"d":"0.0"},{"v":0,"d":"0.0"},{"v":0,"d":"0.0"},{"v":0,"d":"0.0"},{"v":110418.3,"d":"$110,418.3"},{"v":30,"d":"$30.0"}]
[null,"Turismo","Componente 2",null,"Turistas y Visitantes Incrementados","Índice de afluencia e incremento de turistas y visitantes al municipio (T2-ITyVM)","Mide la afluencia y el incremento de turistas y visitantes al municipio ","Eficacia","Gestión","(valor resultante de sumar los valores individuales  de  los cosientes entre sus denominadores por su ponderacion asignada, que miden las  variables de: Servicios, Convenio, Padron y Comité, con su correspondientes ponderaciones de .2, .2, .3,  y .3)",39,39,"Bimestral","Índice",{"v":1,"d":"100%"}," Portal Web del Municipio página de transparencia","Se dispone de personal y recursos",{"v":85327,"d":"$85,327.0"},{"v":11000,"d":"$11,000.0"},{"v":4000,"d":"$4,000.0"},{"v":0,"d":"$0.0"},{"v":0,"d":"$0.0"},{"v":0,"d":"$0.0"},{"v":0,"d":"$0.0"},{"v":0,"d":"$0.0"},{"v":0,"d":"$0.0"},{"v":100327,"d":"$100,327.0"}]
[null,null,"Actividad 2.1",null,"Impulsar programas de apoyo a establecimientos y giros gastronómico, ecológico y culturales.","PORCENTAJE de elaboracion y gestión del programa de apoyo a giros económicos (P106-PAGE)","Mide la cantidad de establecimientos que son beneficiados con el programa","Eficacia","Gestión","(Cantidad de centros económicos con giro de atención y servicio al turismo (50) que pueden ser susceptibles de participar en el finaciamiento para mejorar y fortalecer los servicios que ofrecen al turismo / Total de centros económicos con giro de atención y servicio al turismo (50) que pueden ser susceptibles de participar en el finaciamiento para mejorar y fortalecer los servicios que ofrecen al turismo)*100",50,50,"Mensual","Porcentaje",{"v":1,"d":"100%"}," Portal Web del Municipio página de transparencia","Se dispone de personal y recursos",{"v":25598.1,"d":"25,598.1"},{"v":3300,"d":"3,300.0"},{"v":1200,"d":"1,200.0"},{"v":0,"d":"0.0"},{"v":0,"d":"0.0"},{"v":0,"d":"0.0"},{"v":0,"d":"0.0"},{"v":0,"d":"0.0"},{"v":0,"d":"0.0"},{"v":30098.1,"d":"$30,098.1"},{"v":30,"d":"$30.0"}]
[null,null,"Actividad 2.2",null,"Gestionar convenios y esquemas de servicios turísticos y de hospedaje en casas particulares","PORCENTAJE de cumplimiento del programa de servicios turísticos (P107-CPST)","Mide la cantidad de convenios de servicios turisticos ofertados por los habitantes del municipio ","Eficacia","Gestión","(Cantidad de ciudadanos (100) a los que se les ha ofertado la participación en servicios al turismo bajo un esquema de convenio y servicio de hospedaje, alimentación y trayectos turisticos  / Total de ciudadanos (100) a los que se les ha ofertado la participación en servicios al turismo bajo un esquema de convenio y servicio de hospedaje, alimentación y trayectos turisticos)*100",100,100,"Mensual","Porcentaje",{"v":1,"d":"100%"}," Portal Web del Municipio página de transparencia","Se dispone de personal y recursos",{"v":17065.4,"d":"17,065.4"},{"v":2200.0000000000005,"d":"2,200.0"},{"v":800.0000000000001,"d":"800.0"},{"v":0,"d":"0.0"},{"v":0,"d":"0.0"},{"v":0,"d":"0.0"},{"v":0,"d":"0.0"},{"v":0,"d":"0.0"},{"v":0,"d":"0.0"},{"v":20065.400000000005,"d":"$20,065.4"},{"v":20.000000000000004,"d":"$20.0"}]
[null,null,"Actividad 2.3",null,"Elaborar el padrón de prestadores de servicios turísticos y gestionar la declaración de zonas de desarrollo turístico vinculadas a un programa de actividades","PORCENTAJE de avance en el padrón y declaratoria (P108-APD)","Mide el avance en la gestión de las etapas para integrar un padrón de prestadores de servicios turísticos y la gestion de la declaración de zonas de desarrollo turístico vinculadas a un programa de actividades","Eficacia","Gestión","(Cantidad de etapas (20) de trabajo para integrar un padrón de prestadores de servicios turísticos y la gestion de la declaración de zonas de desarrollo turístico vinculadas a un programa de actividades / Total de etapas (20) de trabajo para integrar un padrón de prestadores de servicios turísticos y la gestion de la declaración de zonas de desarrollo turístico vinculadas a un programa de actividades )*100",20,20,"Mensual","Porcentaje",{"v":1,"d":"100%"}," Portal Web del Municipio página de transparencia","Se dispone de personal y recursos",{"v":21331.75,"d":"21,331.8"},{"v":2750,"d":"2,750.0"},{"v":1000,"d":"1,000.0"},{"v":0,"d":"0.0"},{"v":0,"d":"0.0"},{"v":0,"d":"0.0"},{"v":0,"d":"0.0"},{"v":0,"d":"0.0"},{"v":0,"d":"0.0"},{"v":25081.75,"d":"$25,081.8"},{"v":25,"d":"$25.0"}]
[null,null,"Actividad 2.4",null,"Creación del comité de turismo y su programa de actividades para la promoción turística","PORCENTAJE de avance en la creación del comité de turismo y su programa (P109-ACCTP)","Mide los avances en las etapas para conformar el comité municipal y las actividades del programa de promocion turistica municipal","Eficacia","Gestión","(Cantidad de etapas (10) de trabajo para conformar el comité municipal y las actividades del programa de promocion turistica municipal  / Total de etapas (10) de trabajo para conformar el comité municipal y las actividades del programa de promocion turistica municipal )*100",10,10,"Mensual","Porcentaje",{"v":1,"d":"100%"}," Portal Web del Municipio página de transparencia","Se dispone de personal y recursos",{"v":21331.75,"d":"21,331.8"},{"v":2750,"d":"2,750.0"},{"v":1000,"d":"1,000.0"},{"v":0,"d":"0.0"},{"v":0,"d":"0.0"},{"v":0,"d":"0.0"},{"v":0,"d":"0.0"},{"v":0,"d":"0.0"},{"v":0,"d":"0.0"},{"v":25081.75,"d":"$25,081.8"},{"v":25,"d":"$25.0"}]
[null,"Desarrollo agropecuario","Componente 3",null,"Productividad Agropecuaria Incrementada","Índice de incremento productividad agropecuaria (T3-IPA)","Mide la relación de ejidatarios que participan en los programas de fortalecimiento agropecuario","Eficacia","Gestión","(valor resultante de sumar los valores individuales  de  los cosientes entre sus denominadores por su ponderacion asignada, que miden las  variables de: paquetes económicos, paquetes tecnológicos, transferencia tecnología, área produccion organica, consumo abono, buenas prácticas  con su correspondientes ponderaciones de .1, .1, .2, .2, .2,  y .2)",130,130,"Bimestral","Índice","100%"," Portal Web del Municipio página de transparencia","Se dispone de personal y recursos",{"v":260210,"d":"$260,210.0"},{"v":21000,"d":"$21,000.0"},{"v":4000,"d":"$4,000.0"},{"v":0,"d":"$0.0"},{"v":0,"d":"$0.0"},{"v":0,"d":"$0.0"},{"v":0,"d":"$0.0"},{"v":0,"d":"$0.0"},{"v":0,"d":"$0.0"},{"v":285210,"d":"$285,210.0"}]
[null,null,"Actividad 3.1",null,"Gestionar 100 paquetes económicos a productos agrícolas","PORCENTAJE de avance en la gestión de paquetes económicos agrícolas (P110-AGPEA)","Mide los avances en la gestión de paquetes económicos que mejoren la productividad con su aplicación ","Eficacia","Gestión","(Cantidad de paquetes económicos agricolas (300) gestionados para mejorar la productividad  / Total de paquetes económicos agricolas (300) gestionados para mejorar la productividad  )*100",100,100,"Mensual","Porcentaje",{"v":1,"d":"100%"}," Portal Web del Municipio página de transparencia","Se dispone de personal y recursos",{"v":39031.5,"d":"39,031.5"},{"v":3150,"d":"3,150.0"},{"v":600,"d":"600.0"},{"v":0,"d":"0.0"},{"v":0,"d":"0.0"},{"v":0,"d":"0.0"},{"v":0,"d":"0.0"},{"v":0,"d":"0.0"},{"v":0,"d":"0.0"},{"v":42781.5,"d":"$42,781.5"},{"v":15,"d":"$15.0"}]
[null,null,"Actividad 3.2",null,"Gestionar 100 paquetes tecnológicos a productores agrícolas","PORCENTAJE de avance en la gestión de paquetes tecnológicos agrícolas (P111-AGPTA)","Mide los avances en la gestión, asignación y la aplicación de los paquetes tecnológicos","Eficacia","Gestión","(Cantidad de paquetes tecnólogicos (100) asignados a productores agricolas  / Total de  paquetes tecnólogicos (100) asignados a productores agricolas)*100",100,100,"Mensual","Porcentaje","100%"," Portal Web del Municipio página de transparencia","Se dispone de personal y recursos",{"v":39031.5,"d":"39,031.5"},{"v":3150,"d":"3,150.0"},{"v":600,"d":"600.0"},{"v":0,"d":"0.0"},{"v":0,"d":"0.0"},{"v":0,"d":"0.0"},{"v":0,"d":"0.0"},{"v":0,"d":"0.0"},{"v":0,"d":"0.0"},{"v":42781.5,"d":"$42,781.5"},{"v":15,"d":"$15.0"}]
[null,null,"Actividad 3.3",null,"Desarrollar 9 talleres de transferencia de tecnología, capacitación y extensión, de acuerdo a los diferentes modelos de producción, que permitan una mayor competitividad","PORCENTAJE de desarrollo de talleres de transferencia de tecnología y capacitación (P112-DTTTC)","Mide la participación de los ciudadanos en los talleres","Eficacia","Gestión","(Cantidad de productores (300) que participan en los 9 talleres de transferencia de tecnología / Total de productores (300) que participan en los 9 talleres de transferencia de tecnología )*100",300,300,"Mensual","Porcentaje",{"v":1,"d":"100%"}," Portal Web del Municipio página de transparencia","Se dispone de personal y recursos",{"v":65052.5,"d":"65,052.5"},{"v":5250,"d":"5,250.0"},{"v":1000,"d":"1,000.0"},{"v":0,"d":"0.0"},{"v":0,"d":"0.0"},{"v":0,"d":"0.0"},{"v":0,"d":"0.0"},{"v":0,"d":"0.0"},{"v":0,"d":"0.0"},{"v":71302.5,"d":"$71,302.5"},{"v":25,"d":"$25.0"}]
[null,null,"Actividad 3.4",null,"Incremento de áreas de producción orgánica.","PORCENTAJE de incremento de áreas de producción orgánica (P113-IAPO)","Mide el incremento de área destinada a producción orgánica","Eficacia","Gestión","(Cantidad de héctareas (50) incrementadas para la producción orgánica / Total de  héctareas (50) incrementadas para la producción orgánica)*100",50,50,"Mensual","Porcentaje","100%"," Portal Web del Municipio página de transparencia","Se dispone de personal y recursos",{"v":52042,"d":"52,042.0"},{"v":4200,"d":"4,200.0"},{"v":800,"d":"800.0"},{"v":0,"d":"0.0"},{"v":0,"d":"0.0"},{"v":0,"d":"0.0"},{"v":0,"d":"0.0"},{"v":0,"d":"0.0"},{"v":0,"d":"0.0"},{"v":57042,"d":"$57,042.0"},{"v":20,"d":"$20.0"}]
[null,null,"Actividad 3.5",null,"Promover uso de abonos orgánicos","PORCENTAJE de aumento del consumo de abonos orgánicos (P114-ACAO)","Mide el incremento del uso de abonos orgánicos","Eficacia","Gestión","(Cantidad de héctareas (100) que usan abono organico para enriquecer sus cultivos / Total de héctareas (100) que usan abono organico para enriquecer sus cultivos)*100",100,100,"Mensual","Porcentaje",{"v":1,"d":"100%"}," Portal Web del Municipio página de transparencia","Se dispone de personal y recursos",{"v":39031.5,"d":"39,031.5"},{"v":3150,"d":"3,150.0"},{"v":600,"d":"600.0"},{"v":0,"d":"0.0"},{"v":0,"d":"0.0"},{"v":0,"d":"0.0"},{"v":0,"d":"0.0"},{"v":0,"d":"0.0"},{"v":0,"d":"0.0"},{"v":42781.5,"d":"$42,781.5"},{"v":15,"d":"$15.0"}]
[null,null,"Actividad 3.6",null,"Productores (as) y jóvenes rurales desarrollando buenas prácticas productivas en sus sistemas productivos, que posicionen su inserción en los mercados.   ","PORCENTAJE de aumento de productores aplicando buenas prácticas productivas (P115-APABPP)","Mide el incremento de familias productoras rurales que tienen buenas prácticas productivas","Eficacia","Gestión","(Cantidad de familias de productores y jovenes (100) que desarrollan buenas prácticas productivas en sus sistemas de producción  / Total de familias de productores y jovenes (100) que desarrollan buenas prácticas productivas en sus sistemas de producción)*100",100,100,"Mensual","Porcentaje","100%"," Portal Web del Municipio página de transparencia","Se dispone de personal y recursos",{"v":26021,"d":"26,021.0"},{"v":2100,"d":"2,100.0"},{"v":400,"d":"400.0"},{"v":0,"d":"0.0"},{"v":0,"d":"0.0"},{"v":0,"d":"0.0"},{"v":0,"d":"0.0"},{"v":0,"d":"0.0"},{"v":0,"d":"0.0"},{"v":28521,"d":"$28,521.0"},{"v":10,"d":"$10.0"}]
[null,"Inspección ganadera","Componente 4",null,"Sacrificios Inspeccionados Incrementados","Índice de sacrificios inspeccionados (T4-SI)","Mide la relación de animales para sacrifico que son inspeccionados contra los que no lo son","Eficacia","Gestión","(valor resultante de sumar los valores individuales  de  los cosientes entre sus denominadores por su ponderacion asignada, que miden las  variables de: personal de inspección, inspecciónes con su correspondientes ponderaciones de .4,  y .6)",1042.4,1563.6,"Bimestral","Índice","0.66"," Portal Web del Municipio página de transparencia","Se dispone de personal y recursos",{"v":108029,"d":"$108,029.0"},{"v":30000,"d":"$30,000.0"},{"v":6000,"d":"$6,000.0"},{"v":0,"d":"$0.0"},{"v":0,"d":"$0.0"},{"v":0,"d":"$0.0"},{"v":0,"d":"$0.0"},{"v":0,"d":"$0.0"},{"v":0,"d":"$0.0"},{"v":144029,"d":"$144,029.0"}]
[null,null,"Actividad 4.1",null,"Contar con un  MVZ capacitado para diagnosticar el estado físico y organoléptico de los productos cárnicos ","PORCENTAJE de avance en el programa de capacitación para dictamen organoléptico (P116-APCDO)","Mide el cumplimiento del programa de capacitación","Eficacia","Gestión","(Cantidad de gestiones realizadas (5) por la direccion de Rastro Municipal ante las instancias correspondientes para contar con un MVZ con la experiencia y capacidad de desempeñar las actividades  establecidas en el reglamento municipal de inpector de diagnostico para la autorizacion del sacrificio de ganado y (1) programa de capacitacion del MVZ / Total de gestiones y programa de capacitacion del MVZ (6) realizadas por la direccion de  Rastro Municipal)*100",6,6,"Mensual","Porcentaje","100%"," Portal Web del Municipio página de transparencia","Se dispone de personal y recursos",{"v":70218.85,"d":"70,218.9"},{"v":19500,"d":"19,500.0"},{"v":3900,"d":"3,900.0"},{"v":0,"d":"0.0"},{"v":0,"d":"0.0"},{"v":0,"d":"0.0"},{"v":0,"d":"0.0"},{"v":0,"d":"0.0"},{"v":0,"d":"0.0"},{"v":93618.85,"d":"$93,618.9"},{"v":65,"d":"$65.0"}]
[null,null,"Actividad 4.2",null,"Inspectores con la capacidad de diagnosticar la carne que no es apta para el consumo Humano, y en su caso el decomiso ","PORCENTAJE diagnósticos positivos para consumo y MVZ capacitados (P117-DPCMC)","Mide la cantidad de diagnosticos documentados de carne para venta en el municipio","Eficacia","Gestión","(Cantidad de cabezas de ganado inspeccionadas en píe y en sacrificio mediante diagnostico (2600) por año en el rastro municipal / Total de cabezas de ganado registrado en el rastro municipal (2600) inspeccionado y sacrificado con diagnostico de visto bueno para venta al menudeo como carne en los establecimientos comerciales en territorio municipal)*100",2600,2600,"Mensual","Porcentaje",{"v":1,"d":"100%"}," Portal Web del Municipio página de transparencia","Se dispone de personal y recursos",{"v":37810.15,"d":"37,810.2"},{"v":10500,"d":"10,500.0"},{"v":2100,"d":"2,100.0"},{"v":0,"d":"0.0"},{"v":0,"d":"0.0"},{"v":0,"d":"0.0"},{"v":0,"d":"0.0"},{"v":0,"d":"0.0"},{"v":0,"d":"0.0"},{"v":50410.15,"d":"$50,410.2"},{"v":35,"d":"$35.0"}]
[null,"Rastro municipal","Componente 5",null,"Proveeduría de Carnes Incrementada","Índice de mejora del servicio del rastro municipal para el aprovicionamiento de carne a la población de Ixtlahuacán de los Membrillos a traves de los tablajeros del municipio (T5-PRM)","Mide la relación de kilos de carne que se consumen en el municipio  de ixtlaHucán de procedencia de productores locales","Eficacia","Gestión","(valor resultante de sumar los valores individuales  de  los cosientes entre sus denominadores por su ponderacion asignada, que miden las  variables de: inspección, sacrificio  e instalaciones con su correspondientes ponderaciones de .3, .3,  y .4)",1567,1723,"Bimestral","Índice","0.90"," Portal Web del Municipio página de transparencia","Se dispone de personal y recursos",{"v":305058,"d":"$305,058.0"},{"v":44000,"d":"$44,000.0"},{"v":4000,"d":"$4,000.0"},{"v":0,"d":"$0.0"},{"v":0,"d":"$0.0"},{"v":0,"d":"$0.0"},{"v":0,"d":"$0.0"},{"v":0,"d":"$0.0"},{"v":0,"d":"$0.0"},{"v":353058,"d":"$353,058.0"}]
[null,null,"Actividad 5.1",null,"Plan de inspección a los tablajeros la documentación de la legitima propiedad de los animales sacrificados y Contar con personal capacitado para la inspección en carnicerías  ","PORCENTAJE de cumplimiento del plan de inspección de propiedad y en carnicería (P118-CPIPC)","Mide el cumplimiento del plan de inspección en rastro y carnicerias","Eficacia","Gestión","(Cantidad de actividades contenidas en el plan de supervición (5) a realizar para inspeccionar a los tablajeros respecto a la propiedad de las cebazas de ganado a sacrificar y del cumplimiento de los requisitos (5) para tener canales de carne expuestas a la venta en los locales comerciales de atencion a la ciudadania / Total de actividades (10) de inspección y verificación contenidas en el reglamento de sacrificio y venta de ganado en espacios comerciales particulares dentro del territorio municipal)*100",10,10,"Mensual","Porcentaje","100%"," Portal Web del Municipio página de transparencia","Se dispone de personal y recursos",{"v":76264.5,"d":"76,264.5"},{"v":11000,"d":"11,000.0"},{"v":1000,"d":"1,000.0"},{"v":0,"d":"0.0"},{"v":0,"d":"0.0"},{"v":0,"d":"0.0"},{"v":0,"d":"0.0"},{"v":0,"d":"0.0"},{"v":0,"d":"0.0"},{"v":88264.5,"d":"$88,264.5"},{"v":25,"d":"$25.0"}]
[null,null,"Actividad 5.2",null,"Fortalecer el sacrificio, producción y venta de ganado local","PORCENTAJE de sacrificio, producción y venta de ganado local (P119-VSGL)","Mide el incremento de consumo de ganado local","Eficacia","Gestión","(Cantidad de sacrificios (2600), producción de canal por trabajador (520) y venta de ganado de productores locales (2080) por año en el rastro municipal / Total de cabezas de ganado registrado en el rastro municipal (2600), producción de canal por trabajador (520) y venta de ganado de productores locales (2600) por año en el rastro municipal para venta al menudeo como carne en los establecimientos comerciales en territorio municipal)*100",5200,5720,"Mensual","Porcentaje",{"v":0.909,"d":"90.90%"}," Portal Web del Municipio página de transparencia","Se dispone de personal y recursos",{"v":106770.3,"d":"106,770.3"},{"v":15400,"d":"15,400.0"},{"v":1400,"d":"1,400.0"},{"v":0,"d":"0.0"},{"v":0,"d":"0.0"},{"v":0,"d":"0.0"},{"v":0,"d":"0.0"},{"v":0,"d":"0.0"},{"v":0,"d":"0.0"},{"v":123570.3,"d":"$123,570.3"},{"v":35,"d":"$35.0"}]
[null,null,"Actividad 5.3",null,"Mejorar las instalaciones con equipamiento ","PORCENTAJE de avance en el diagnostico (P120-AD)","Mide el avance en el diagnóstico y su aplicación en mejorar las instalaciónes del rastro municipal","Eficacia","Gestión","(Cantidad de actividades (10) a realizar para mejorar las instalaciones y servicio con equipamiento del rastro municipal  / Total de actividades (10) concluidas para mejorar las instalaciones y servicio con equipamiento del rastro municipal )*100",10,10,"Mensual","Porcentaje","100%"," Portal Web del Municipio página de transparencia","Se dispone de personal y recursos",{"v":122023.20000000001,"d":"122,023.2"},{"v":17600.000000000004,"d":"17,600.0"},{"v":1600.0000000000002,"d":"1,600.0"},{"v":0,"d":"0.0"},{"v":0,"d":"0.0"},{"v":0,"d":"0.0"},{"v":0,"d":"0.0"},{"v":0,"d":"0.0"},{"v":0,"d":"0.0"},{"v":141223.2,"d":"$141,223.2"},{"v":40.00000000000001,"d":"$40.0"}]
[null,"Promoción económica","Componente 6",null,"Promoción Económica Incrementada","Índice de atención a la promociona de la economía (T6-APE)","Mide la relación de centros económicos municipales que reciben orientacion o apoyo economico para su fortalecimiento","Eficacia","Gestión","(valor resultante de sumar los valores individuales  de  los cosientes entre sus denominadores por su ponderacion asignada, que miden las  variables de: espacio de atención, adecuacion de modulo y plan de vinculación con su correspondientes ponderaciones de .3, .4,  y .3)",15.9,17.7,"Bimestral","Índice","0.898"," Portal Web del Municipio página de transparencia","Se dispone de personal y recursos",{"v":328764,"d":"$328,764.0"},{"v":10000,"d":"$10,000.0"},{"v":4000,"d":"$4,000.0"},{"v":0,"d":"$0.0"},{"v":0,"d":"$0.0"},{"v":0,"d":"$0.0"},{"v":0,"d":"$0.0"},{"v":0,"d":"$0.0"},{"v":0,"d":"$0.0"},{"v":342764,"d":"$342,764.0"}]
[null,null,"Actividad 6.1",null,"Establecer un espacio para la atención de los comerciantes y/o empresarios.","PORCENTAJE de avance en las gestiones para la atención de comerciantes y empresarios (P121-AGACE)","Mide el avance en las gestiones para tener instalaciones para la atencion de los comerciantes y empresarios","Eficacia","Gestión","(Cantidad de actividades (15) a realizar para gestionar un espacio para la atención de comerciantes y empresarios por parte de la Dirección de promoción Económica  / Total de actividades (15) concluidas para la para gestionar un espacio para la atención de comerciantes y empresarios por parte de la Dirección de promoción Económica)*100",15,15,"Mensual","Porcentaje","100%"," Portal Web del Municipio página de transparencia","Se dispone de personal y recursos",{"v":65752.8,"d":"65,752.8"},{"v":2000,"d":"2,000.0"},{"v":800,"d":"800.0"},{"v":0,"d":"0.0"},{"v":0,"d":"0.0"},{"v":0,"d":"0.0"},{"v":0,"d":"0.0"},{"v":0,"d":"0.0"},{"v":0,"d":"0.0"},{"v":68552.8,"d":"$68,552.8"},{"v":20,"d":"$20.0"}]
[null,null,"Actividad 6.2",null,"Adecuación del módulo (SARE) sistema de apertura rápida de empresas, ante la Dirección de Mejora Regulatoria y ante la COFEMER Consejo Federal de Mejora Regulatoria.","PORCENTAJE de adecuación del módulo SARE ante la Dirección de Mejora Regulatoria y su inclusion en el índice de facilidad para abrir una empresa (P122-AMSDMR)","Mide los avances en la adecuación del SARE ante la dirección de mejora regulatoria y su inclusion en el índice de facilidad para abrir una empresa ","Eficacia","Gestión","(Cantidad de actividades (15) a realizar para adecuar el módulo SARE municipal ante la Dirección de Mejora Regulatoria y su inclusion en el índice de facilidad para abrir una empresa  / Total de actividades (15) concluidas para la adecuación del módulo SARE municipal ante la Dirección de Mejora Regulatoria y su inclusion en el índice de facilidad para abrir una empresa)*100",15,15,"Mensual","Porcentaje",{"v":1,"d":"100%"}," Portal Web del Municipio página de transparencia","Se dispone de personal y recursos",{"v":147943.8,"d":"147,943.8"},{"v":4499.999999999999,"d":"4,500.0"},{"v":1799.9999999999998,"d":"1,800.0"},{"v":0,"d":"0.0"},{"v":0,"d":"0.0"},{"v":0,"d":"0.0"},{"v":0,"d":"0.0"},{"v":0,"d":"0.0"},{"v":0,"d":"0.0"},{"v":154243.8,"d":"$154,243.8"},{"v":44.99999999999999,"d":"$45.0"}]
[null,null,"Actividad 6.3",null,"Plan de vinculación ante  las cámaras industriales, sector empresarial de Jalisco y organismos empresariales para promover al Municipio en proyectos estratégicos.","PORCENTAJE de avance del plan de vinculación (P123-APV)","Mide los resultados del plan de vinculación del municipio y sus comerciantes y empresarios con las camaras de comercio y organismos empresariales","Eficacia","Gestión","(Cantidad de gestiones exitosas (18) realizadas por la direccion de promocion economica  establecidas en el Plan de vinculación ante  las cámaras industriales, sector empresarial de Jalisco y organismos empresariales  / Total de gestiones (24) realizadas por la direccion de promocion economica  dentro del Plan de vinculación ante  las cámaras industriales, sector empresarial de Jalisco y organismos empresariales  )*100",18,24,"Mensual","Porcentaje",0.75," Portal Web del Municipio página de transparencia","Se dispone de personal y recursos",{"v":115067.4,"d":"115,067.4"},{"v":3500,"d":"3,500.0"},{"v":1400,"d":"1,400.0"},{"v":0,"d":"0.0"},{"v":0,"d":"0.0"},{"v":0,"d":"0.0"},{"v":0,"d":"0.0"},{"v":0,"d":"0.0"},{"v":0,"d":"0.0"},{"v":119967.4,"d":"$119,967.4"},{"v":35,"d":"$35.0"}]
[null,"Informática","Componente 7",null,"Calidad Informática Mejorada","INDICE de calidad informática (V1-CI)","Mide el nivel de atencion y solucion de los problemas a los usuarios de los equipos informaticos de la administración municipal","Eficacia","Gestión","(valor resultante de sumar los valores individuales  de  los cosientes entre sus denominadores por su ponderacion asignada, que miden las  variables de: acttualizacion de red, reglamento y mantenimiento con su correspondientes ponderaciones de .4, .2,  y .4)",38.8,39.4,"Bimestral","Índice",0.98," Portal Web del Municipio página de transparencia","Se dispone de personal y recursos",{"v":114780,"d":"$114,780.0"},{"v":17000,"d":"$17,000.0"},{"v":34000,"d":"$34,000.0"},{"v":0,"d":"$0.0"},{"v":0,"d":"$0.0"},{"v":0,"d":"$0.0"},{"v":0,"d":"$0.0"},{"v":0,"d":"$0.0"},{"v":0,"d":"$0.0"},{"v":165780,"d":"$165,780.0"}]
[null,null,"Actividad 7.1",null,"Levantamiento del estado actual de la red y dados los resultados adquirir nuevo equipo que atienda las necesidades.","PORCENTAJE de actualización de la red, adquisición de nuevos equipos y colocacion de puntos de acceso a internet (P124-ARANE)","Mide el avance en la actualización de los equipos, licencias y redes, que permitan la instalacion de sitios de gobierno con servicio de acceso a internet","Eficacia","Gestión","(Cantidad de redes de  computacion actualizadas (3), de computadoras adquiridas nuevas (8) y mantenimiento o colocacion de puntos nuevos de acceso a internet  (33) /total de redes, computadoras y puntos de acceso a internet (44))*100",44,44,"Mensual","Porcentaje",{"v":1,"d":"100%"}," Portal Web del Municipio página de transparencia","Se dispone de personal y recursos",{"v":17217,"d":"17,217.0"},{"v":2550,"d":"2,550.0"},{"v":5100,"d":"5,100.0"},{"v":0,"d":"0.0"},{"v":0,"d":"0.0"},{"v":0,"d":"0.0"},{"v":0,"d":"0.0"},{"v":0,"d":"0.0"},{"v":0,"d":"0.0"},{"v":24867,"d":"$24,867.0"},{"v":15,"d":"$15.0"}]
[null,null,"Actividad 7.2",null,"Elaboración de un reglamento que se adecue a las nuevas necesidades de este ayuntamiento.","PORCENTAJE de elaboración del reglamento de informática (P125-ERI)","Mide el avance en la elaboración el reglamento de informatica y sistemas","Eficacia","Gestión","(Cantidad de articulos (20) desarrollados para el reglamento de resguardo, uso y manipulacion de equipos de computacion de la administracion municipal asignadas a las direcciones establecidas / Total de direcciones 23 con equipos de computacion de la administracion municipal asignadas y con aportaciones y conocimiento)*100",20,23,"Mensual","Porcentaje",{"v":0.8695,"d":"86.95%"}," Portal Web del Municipio página de transparencia","Se dispone de personal y recursos",{"v":22956,"d":"22,956.0"},{"v":3400,"d":"3,400.0"},{"v":6800,"d":"6,800.0"},{"v":0,"d":"0.0"},{"v":0,"d":"0.0"},{"v":0,"d":"0.0"},{"v":0,"d":"0.0"},{"v":0,"d":"0.0"},{"v":0,"d":"0.0"},{"v":33156,"d":"$33,156.0"},{"v":20,"d":"$20.0"}]
[null,null,"Actividad 7.3",null,"Programa de mantenimiento, atención y solución de problemas que se presentes en las áreas de este ayuntamiento.","PORCENTAJE de avance del programa de mantenimiento y atención a sistemas computacionales (P126-APMASC)","Mide los avances en el cumplimiento del programa de mantenimiento y atención","Eficacia","Gestión","(Cantidad de computadoras (23) incluidas en el programa de mantenimiento y actividades relacionadas a las tecnologías de la informacion (20) que atiende el personal asignado a esta dirección administrativa del ayuntamiento  /total de computadoras y actividades por atender  en la dirección de Informática (43))*100",43,43,"Mensual","Porcentaje",{"v":1,"d":"100%"}," Portal Web del Municipio página de transparencia","Se dispone de personal y recursos",{"v":74607,"d":"74,607.0"},{"v":11050,"d":"11,050.0"},{"v":22100,"d":"22,100.0"},{"v":0,"d":"0.0"},{"v":0,"d":"0.0"},{"v":0,"d":"0.0"},{"v":0,"d":"0.0"},{"v":0,"d":"0.0"},{"v":0,"d":"0.0"},{"v":107757,"d":"$107,757.0"},{"v":65,"d":"$65.0"}]
[]
[{"$nulls":17},{"$f":"AD$50*$AC$53/$AD$18","v":{"$error":"#DIV/0!"}},{"$f":"AE$50*$AC$53/$AD$18","v":{"$error":"#DIV/0!"}},{"$error":"#DIV/0!"},{"$error":"#DIV/0!"},{"$error":"#DIV/0!"},{"$error":"#DIV/0!"},{"$error":"#DIV/0!"},{"$error":"#DIV/0!"},{"$error":"#DIV/0!"}]

{"sheet":"Pp4 MIR GT","index":1,"n_rows":46,"n_cols":28,"rows_kept":46,"hidden":true,"merged":[[2,2,2,3],[3,2,3,3],[4,2,4,3],[5,2,5,3],[6,2,6,3],[7,2,7,3],[8,2,8,3],[9,1,10,1],[9,2,9,3],[10,2,10,3],[11,1,12,1],[11,2,11,3],[12,2,12,3],[13,1,14,1],[13,2,13,3],[14,2,14,3],[16,4,16,16],[16,17,16,25],[20,1,27,1],[28,1,35,1],[36,1,39,1],[40,1,43,1]]}
[]
[{"$nulls":11},"  MATRIZ DE INDICADORES PARA RESULTADOS POR PROGRAMA "]
[null,null,"Municipio",null,"Ixtlahuacán de los Membrillos"]
[null,null,"Denominación del Programa",null,"Gestión del Territorio"]
[null,null,"Categoría programática",null,"Promoción y fomento"]
[null,null,"Unidad Responsable/OPD",null,"Dirección de desarrollo urbano"]
[null,null,"Finalidad",null,"Desarrollo_Social"]
[null,null,"Función",null,"Protección_Ambiental"]
[null,null,"Sub-función",null,"2.1.6 Otros de Protección Ambiental"]
[null,"Plan Nacional de Desarrollo","Alineación con objetivos superiores del PND",null,"IV.II  Bienestar :  Garantizar el ejercicio efectivo de los derechos económicos, sociales, culturales y ambientales, con énfasis en la reducción de brechas de desigualdad y condiciones de vulnerabilidad y discriminación en poblaciones y territorios."]
[null,null,"Alineación con objetivos secundarios del PND",null,"Objetivo 2.8 Fortalecer la rectoría y vinculación del ordenamiento territorial y ecológico de los asentamientos humanos y de la tenencia de la tierra, mediante el uso racional y equilibrado del territorio, promoviendo la accesibilidad y la movilidad eficiente."]
[null,"Plan Estatal de Desarrollo","Alineación con objetivos superiores del PED",null,"6.6 Desarrollo sostenible del territorio"]
[null,null,"Alineación con objetivos secundarios del PED",null,"Gobernanza territorial y desarrollo regional"]
[null,"Plan Municipal de Desarrollo","Alineación con objetivos superiores del PMD",null,"4. Gestión del Territorio"]
[null,null,"Alineación con objetivos secundarios del PMD",null,"Incrementar el Índice Administrativo de Gestión Territorial"]
[]
[{"$nulls":4},"I N D I C A D O R E S",{"$nulls":12},"P R E S U P U E S T O"]
[{"$nulls":4},"Resumen Narrativo","Nombre del indicador","Definición","Dimensión","Tipo","Método de cálculo","Valor programado 1 (Numerador)","Valor programado 2 (Denominador)","Frecuencia de medición","Unidad de medida","Metas","Medios de verificación","Supuestos","Capítulo 1000","Capítulo 2000","Capítulo 3000","Capítulo 4000","Capítulo 5000","Capítulo 6000","Capítulo 7000","Capítulo 8000","Capítulo 9000",null,100]
[null,null,"Fin",null,"La población que reside en Ixtlhuacán de los Membreillos disponen de un estado de bienestar en cuatro dimensiónes; Estado de Derecho, Desarrollo Social, Desarrollo Económico y Gestión del Territorio.","INDICE Integral de Cumplimiento del Plan Municipal de Desarrollo y Gobernanza 2018-2021 (IICPMDG 1821)","Mide en el cumplimiento en cada uno de los programas presupuestarios establecidos en cada eje del PMDyG para su segumiento al cumplimiento de las metas definidas para cada unidad administrativa municipal","Eficiencia","Estratégico","IIDMt = [(IIEDSmt + IIDSmt + IIDEmt + IAGTmt) /4]",2.21,4,"Anual","Índice",0.55," Portal Web del Municipio página de transparencia","Se dispone de personal y recursos ",{"v":4017143,"d":"$4,017,143.00"},{"v":4016000,"d":"$4,016,000.00"},{"v":2041000,"d":"$2,041,000.00"},{"v":0,"d":"$0.00"},{"v":0,"d":"$0.00"},{"v":0,"d":"$0.00"},{"v":0,"d":"$0.00"},{"v":0,"d":"$0.00"},{"v":0,"d":"$0.00"},{"v":29228888,"d":"$29,228,888.00"},{"v":0.2014,"d":"20.14%"}]
[null,null,"Propósito",null,"Valorar y cuidar la generación de residuos sólidos, la deforestación, la explotación de acuíferos, la cobertura forestal, las áreas naturales protegidas.","Índice Municipal de Medio Ambiente","Mide el progreso del municipio en tener un indice de desarrollo medioambiental alto en comparación con los municipios de Jalisco","Eficiencia","Estratégico","(valor resultante de sumar los valores individuales  de  los cosientes entre sus denominadores por su ponderacion asignada, que miden las  variables de: ordenamiento, instrumentos, obra pública y condiciones  con su correspondientes ponderaciones de .3 .2, .2, y .3)",401.28,766.66,"Semestral","Índice",0.52," Portal Web del Municipio página de transparencia","Se dispone de personal y recursos ",{"v":4017143,"d":"$4,017,143.00"},{"v":4016000,"d":"$4,016,000.00"},{"v":2041000,"d":"$2,041,000.00"},{"v":0,"d":"$0.00"},{"v":0,"d":"$0.00"},{"v":0,"d":"$0.00"},{"v":0,"d":"$0.00"},{"v":0,"d":"$0.00"},{"v":0,"d":"$0.00"},{"v":29228888,"d":"$29,228,888.00"}]
[null,"Ordenamiento Territorial (sustentabilidad)","Componente 1",null,"Instrumentos de Planeación y Ordenamiento Territorial Actualizados","Índice de actualización de instrumentos de planeación y ordenamiento territorial (T1-IPyOTa)","Mide el índice de actualización de los Instrumentos de Planeación y Ordenamiento Territorial","Eficacia","Gestión","(valor resultante de sumar los valores individuales  de  los cosientes entre sus denominadores por su ponderacion asignada, que miden las  variables de: diagnostico saneamiento rios, saneamiento presas, reforestación,  regularización, explotación, crecimiento y turismo con su correspondientes ponderaciones de .1, .1, .2, .1, .1, .2, y .2)",676.6,1726.6,"Bimestral","Índice",0.39," Portal Web del Municipio página de transparencia","Se dispone de personal y recursos ",{"v":333342,"d":"$333,342.00"},{"v":9000,"d":"$9,000.00"},{"v":4000,"d":"$4,000.00"},{"v":0,"d":"$0.00"},{"v":0,"d":"$0.00"},{"v":0,"d":"$0.00"},{"v":0,"d":"$0.00"},{"v":0,"d":"$0.00"},{"v":0,"d":"$0.00"},{"v":346342,"d":"$346,342.00"}]
[null,null,"Actividad 1.1",null,"Diagnostico y Programa de Saneamiento Rio Los Sabinos, arroyos y riachuelos","PORCENTAJE de avance en el diagnóstico de saneamiento (P127-ADS)","Mide los avances en la elaboración del diagnostico y su programa de saneamiento","Eficacia","Gestión","(Cantidad de temas a desarrollar (10) dentro del Diagnostico y Programa de Saneamiento Rio Los Sabinos, arroyos y riachuelos / Total de temas (10) desarrollados dentro del  Diagnostico y Programa de Saneamiento Rio Los Sabinos, arroyos y riachuelos )*100",10,10,"Mensual","Porcentaje",{"v":1,"d":"1.00"}," Portal Web del Municipio página de transparencia","Se dispone de personal y recursos ",{"v":33334.2,"d":"33,334.2"},{"v":899.9999999999999,"d":"900.0"},{"v":399.99999999999994,"d":"400.0"},{"v":0,"d":"0.0"},{"v":0,"d":"0.0"},{"v":0,"d":"0.0"},{"v":0,"d":"0.0"},{"v":0,"d":"0.0"},{"v":0,"d":"0.0"},{"v":34634.2,"d":"$34,634.20"},{"v":9.999999999999998,"d":"$10.00"}]
[null,null,"Actividad 1.2",null,"Diagnostico y Programa de Saneamiento de la Presa El Llano","PORCENTAJE de avance en el diagnóstico de saneamiento Presa el Llano (P128-ADSPL)","Mide los avances en la elaboración del diagnostico y su programa de saneamiento de la Presa","Eficacia","Gestión","(Cantidad de temas a desarrollar (10) dentro del Diagnostico y Programa de Saneamiento de la Presa El Llano / Total de temas (10) desarrollados dentro del  Diagnostico y Programa de Saneamiento de la Presa El Llano )*100",10,10,"Mensual","Porcentaje",{"v":1,"d":"100%"}," Portal Web del Municipio página de transparencia","Se dispone de personal y recursos ",{"v":33334.2,"d":"33,334.2"},{"v":899.9999999999999,"d":"900.0"},{"v":399.99999999999994,"d":"400.0"},{"v":0,"d":"0.0"},{"v":0,"d":"0.0"},{"v":0,"d":"0.0"},{"v":0,"d":"0.0"},{"v":0,"d":"0.0"},{"v":0,"d":"0.0"},{"v":34634.2,"d":"$34,634.20"},{"v":9.999999999999998,"d":"$10.00"}]
[null,null,"Actividad 1.3",null,"Impartición de 12 talleres de promoción y fomento de reforestación y conservación del medio ambiente","PORCENTAJE de avance en programa de campañas de reforestación  (P129-APCR)","Mide los avances en la imparticion de los talleres  que integran las campañas","Eficacia","Gestión","(Cantidad de ciudadanos inscritos (350) para participar en el programa de 12 talleres de capacitacion sobre promoción, fomento y participación en 12 campañas de reforestación y conservación del medio ambiente/total de ciudadanos ejidatarios (5000) o pequeña propiedad (600) que participan en el programa)*100",350,5600,"Mensual","Porcentaje",{"v":1,"d":"1.00"}," Portal Web del Municipio página de transparencia","Se dispone de personal y recursos ",{"v":50001.3,"d":"50,001.3"},{"v":1350,"d":"1,350.0"},{"v":600,"d":"600.0"},{"v":0,"d":"0.0"},{"v":0,"d":"0.0"},{"v":0,"d":"0.0"},{"v":0,"d":"0.0"},{"v":0,"d":"0.0"},{"v":0,"d":"0.0"},{"v":51951.3,"d":"$51,951.30"},{"v":15,"d":"$15.00"}]
[null,null,"Actividad 1.4",null,"Programa de regularización de predios en las localidades de Santa Rosa y Los Cedros","PORCENTAJE de avance en el programa de regularización de predios (P130-APRP)","Mide los avances en la implementación del programa de regularización","Eficacia","Gestión","(Cantidad de etapas (10) completas en la elaboracion de cada uno de los expedientes del programa de regularizacion de predios en Santa Rosa y Cedros  / total de etapas (6000) completadas en cada uno de los 600 predios por regularizar en  el programa de regularizacion de predios en Santa Rosa y Cedros)*100",6000,6000,"Mensual","Porcentaje",{"v":1,"d":"100%"}," Portal Web del Municipio página de transparencia","Se dispone de personal y recursos ",{"v":50001.3,"d":"50,001.3"},{"v":1350,"d":"1,350.0"},{"v":600,"d":"600.0"},{"v":0,"d":"0.0"},{"v":0,"d":"0.0"},{"v":0,"d":"0.0"},{"v":0,"d":"0.0"},{"v":0,"d":"0.0"},{"v":0,"d":"0.0"},{"v":51951.3,"d":"$51,951.30"},{"v":15,"d":"$15.00"}]
[null,null,"Actividad 1.5",null,"Elaborar un diagnostico de los niveles de sobre explotación del territorio","PORCENTAJE de avance en el diagnóstico de explotación territorial (P131-ADET )l","Mide los avances en la elaboración del diagnostico sobre la explotación del territorio","Eficacia","Gestión","(Cantidad de temas a desarrollar (10) dentro del diagnóstico de explotación territorial / Total de temas (10) desarrollados dentro del  diagnóstico de explotación territorial )*100",10,10,"Mensual","Porcentaje",{"v":1,"d":"1.00"}," Portal Web del Municipio página de transparencia","Se dispone de personal y recursos ",{"v":66668.4,"d":"66,668.4"},{"v":1799.9999999999998,"d":"1,800.0"},{"v":799.9999999999999,"d":"800.0"},{"v":0,"d":"0.0"},{"v":0,"d":"0.0"},{"v":0,"d":"0.0"},{"v":0,"d":"0.0"},{"v":0,"d":"0.0"},{"v":0,"d":"0.0"},{"v":69268.4,"d":"$69,268.40"},{"v":19.999999999999996,"d":"$20.00"}]
[null,null,"Actividad 1.6",null,"Alternativas de crecimiento urbano sin el cambio de uso de suelo agrícola a urbano","PORCENTAJE  de avance en el programa de alternativas de crecimiento urbano (P132-APACU)","Mide los avances en el programa de crecimiento urbano sin el cambio de uso de suelos","Eficacia","Gestión","(Cantidad de temas a desarrollar (9) dentro del Programa Municipal de alternativas de crecimiento urbano  sin el cambio de uso de suelos / Total de temas desarrollados dentro del  Programa Municipal de alternativas de crecimiento urbano  sin el cambio de uso de suelos (9) )*100",9,9,"Mensual","Porcentaje",{"v":1,"d":"100%"}," Portal Web del Municipio página de transparencia","Se dispone de personal y recursos ",{"v":50001.3,"d":"50,001.3"},{"v":1350,"d":"1,350.0"},{"v":600,"d":"600.0"},{"v":0,"d":"0.0"},{"v":0,"d":"0.0"},{"v":0,"d":"0.0"},{"v":0,"d":"0.0"},{"v":0,"d":"0.0"},{"v":0,"d":"0.0"},{"v":51951.3,"d":"$51,951.30"},{"v":15,"d":"$15.00"}]
[null,null,"Actividad 1.7",null,"Desarrollar un programa de impulso al turismo ecológico y su ordenamiento","PORCENTAJE de avance del programa de impulso turístico ecológico (P133-APITE)","Mide el avance en la elaboración de programa de impulso al turismo ecológico","Eficacia","Gestión","(Cantidad de temas a desarrollar (9) dentro del programa de impulso al turismo ecológico a nivel municipal / Total de temas desarrollados dentro del  programa de impulso al turismo ecológico a nivel municipal (9) )*100",9,9,"Mensual","Porcentaje",{"v":1,"d":"1.00"}," Portal Web del Municipio página de transparencia","Se dispone de personal y recursos ",{"v":50001.3,"d":"50,001.3"},{"v":1350,"d":"1,350.0"},{"v":600,"d":"600.0"},{"v":0,"d":"0.0"},{"v":0,"d":"0.0"},{"v":0,"d":"0.0"},{"v":0,"d":"0.0"},{"v":0,"d":"0.0"},{"v":0,"d":"0.0"},{"v":51951.3,"d":"$51,951.30"},{"v":15,"d":"$15.00"}]
[null,"Desarrollo Urbano","Componente 2",null,"Instrumentos de Planeación Urbana Actualizados","Índice de actualizacion de los instrumentos de planeación urbana. (Í2-IAIPU)","Mide el índice de adtualización de los Instrumentos de planeación urbana ","Eficacia","Gestión","(valor resultante de sumar los valores individuales  de  los cosientes entre sus denominadores por su ponderacion asignada, que miden las  variables de: consolidación habitacional en fraccionamientos, consolidacion urbana en localidades, planes de centros, desarrollo urbano, imagen urbana, equipamiento y regularización con su correspondientes ponderaciones de .1, .1, .1, .2, .2, .2, y .1)",655.5,671.5,"Bimestral","Índice",0.97," Portal Web del Municipio página de transparencia","Se dispone de personal y recursos ",{"v":282066,"d":"$282,066.00"},{"v":30000,"d":"$30,000.00"},{"v":88000,"d":"$88,000.00"},{"v":0,"d":"$0.00"},{"v":0,"d":"$0.00"},{"v":0,"d":"$0.00"},{"v":0,"d":"$0.00"},{"v":0,"d":"$0.00"},{"v":0,"d":"$0.00"},{"v":400066,"d":"$400,066.00"}]
[null,null,"Actividad 2.1",null,"Consolidar los fraccionamientos existentes antes de abrir nuevas áreas de uso habitacional.","PORCENTAJE de consolidación urbana de fraccionamiento existentes (P134-CUFE)","Mide el porcentaje de consolidación habitacional de cada fraccionamiento","Eficacia","Gestión","(Cantidad de temas (5) que determinan la consolidación habitacional de los 10 fraccionamiento urbanos existentes  dentro del Programa Municipal de consolidación habitacional de fraccionamientos urbanos  / Total de temas 50 necesarios de cubrir para considararlos como consolidados dentro del Programa Municipal de consolidación habitacional )*100",50,50,"Mensual","Porcentaje",{"v":1,"d":"100%"}," Portal Web del Municipio página de transparencia","Se dispone de personal y recursos ",{"v":28206.6,"d":"28,206.6"},{"v":3000,"d":"3,000.0"},{"v":8800,"d":"8,800.0"},{"v":0,"d":"0.0"},{"v":0,"d":"0.0"},{"v":0,"d":"0.0"},{"v":0,"d":"0.0"},{"v":0,"d":"0.0"},{"v":0,"d":"0.0"},{"v":40006.6,"d":"$40,006.60"},{"v":10,"d":"$10.00"}]
[null,null,"Actividad 2.2",null,"Consolidar las localidades tradicionales que cuentan con suelo disponible dentro de sus límites","PORCENTAJE de consolidación urbana de localidades tradicionales (P135-CULT)","Mide el porcentaje de consolidación habitacional de las localidades tradicionales","Eficacia","Gestión","(Cantidad de temas que determinan la consolidación de las localidaes tradicionales (5) dentro del Programa Municipal de consolidación de localidades tradicionales (4) que cuentan con suelo disponible dentro de sus límites / Total de temas 20 necesarios de cubrir para considararlos como consolidados dentro del Programa Municipal de consolidación de localidades tradicionales (4) que cuentan con suelo disponible dentro de sus límites )*100",20,20,"Mensual","Porcentaje",{"v":1,"d":"1.00"}," Portal Web del Municipio página de transparencia","Se dispone de personal y recursos ",{"v":28206.6,"d":"28,206.6"},{"v":3000,"d":"3,000.0"},{"v":8800,"d":"8,800.0"},{"v":0,"d":"0.0"},{"v":0,"d":"0.0"},{"v":0,"d":"0.0"},{"v":0,"d":"0.0"},{"v":0,"d":"0.0"},{"v":0,"d":"0.0"},{"v":40006.6,"d":"$40,006.60"},{"v":10,"d":"$10.00"}]
[null,null,"Actividad 2.3",null,"Elaboración de Planes de Centro de Población. ","PORCENTAJE de avance de elaboración de planes de centros de población (P136-AEPCP)","Mide los avances en la elaboración de los planes de desarrollo urbano de centros de población municipal","Eficacia","Gestión","(Cantidad de planes (7) a desarrollar dentro del Programa de Planes de Centro de Población en el municipio / Total de planes (7) a desarrollar dentro del  Programa de Planes de Centro de Población en el municipio )*100",7,7,"Mensual","Porcentaje",{"v":1,"d":"100%"}," Portal Web del Municipio página de transparencia","Se dispone de personal y recursos ",{"v":28206.6,"d":"28,206.6"},{"v":3000,"d":"3,000.0"},{"v":8800,"d":"8,800.0"},{"v":0,"d":"0.0"},{"v":0,"d":"0.0"},{"v":0,"d":"0.0"},{"v":0,"d":"0.0"},{"v":0,"d":"0.0"},{"v":0,"d":"0.0"},{"v":40006.6,"d":"$40,006.60"},{"v":10,"d":"$10.00"}]
[null,null,"Actividad 2.4",null,"Elaboración del Programa Municipal de Desarrollo Urbano","PORCENTAJE de avance del programa de desarrollo urbano para ser considerado en los municipios que cuentan con instrumentos de planeación urbana, y ordenamiento ecológico y territorial congruentes con los instrumentos superiores (P137-APDU)","Mide el avance en la elaboración del programa de desarrollo urbano municipal","Eficacia","Gestión","(Cantidad de temas a desarrollar (9) dentro del Programa Municipal de Desarrollo Urbano a nivel municipal / Total de temas desarrollados dentro del  Programa Municipal de Desarrollo Urbano a nivel municipal (9) )*100",9,9,"Mensual","Porcentaje",{"v":1,"d":"100%"}," Portal Web del Municipio página de transparencia","Se dispone de personal y recursos ",{"v":28206.6,"d":"28,206.6"},{"v":3000,"d":"3,000.0"},{"v":8800,"d":"8,800.0"},{"v":0,"d":"0.0"},{"v":0,"d":"0.0"},{"v":0,"d":"0.0"},{"v":0,"d":"0.0"},{"v":0,"d":"0.0"},{"v":0,"d":"0.0"},{"v":40006.6,"d":"$40,006.60"},{"v":10,"d":"$10.00"}]
[null,null,"Actividad 2.5",null,"Mejorar la imagen urbana en ingresos y primer cuadro de las localidades tradicionales","PORCENTAJE de avance del plan de imagen urbana (P138-APIU)","Mide los avances de los planes de mejora de imagen urbana ","Eficacia","Gestión","(Cantidad de puntos(10) a considerar como ingresos a la ciudad (6) y primer cuadro  en cabecera y localidades tradicionales (4) dentro del programa de imagen urbana considerando las variables (fachadas, estacionamiento en calles, banquetas, puestos ambualentes, letreros, colores, paradas de transporte público, señaletica vial y de calles, contenedores o tiradesros de basura, cableados de luz pública, arbotantes, areas verdes, carcamos y tapas de drenaje (16) / Total de puntos 160 a revisar dentro del programa de imagen urbana con las variable mencionadas)*100",130,160,"Mensual","Porcentaje",{"v":1,"d":"100%"}," Portal Web del Municipio página de transparencia","Se dispone de personal y recursos ",{"v":70516.5,"d":"70,516.5"},{"v":7500,"d":"7,500.0"},{"v":22000,"d":"22,000.0"},{"v":0,"d":"0.0"},{"v":0,"d":"0.0"},{"v":0,"d":"0.0"},{"v":0,"d":"0.0"},{"v":0,"d":"0.0"},{"v":0,"d":"0.0"},{"v":100016.5,"d":"$100,016.50"},{"v":25,"d":"$25.00"}]
[null,null,"Actividad 2.6",null,"Elaborar estudio de requerimiento en términos de equipamiento en localidades y fraccionamientos","PORCENTAJE de avance en el estudio de equipamiento urbano (P139-AEEU)","Mide los avances en la elaboracion del estudio de equipamiento en localidades y fraccionamientos","Eficacia","Gestión","(Cantidad de localidades  (10) y fraccionamientos (5) que se incluiran en el estudio de necesidades de equipamiento urbano respecto a (10) variables (Agua, luz, drenaje, pavimento, alumbrado público, transporte público, señaletica vial, banquetas, espacios deportivos, espacios culturales)  100 necesidades / Total de necesidades 150 consideradas como variable en el estudio de equipamiento )*100",100,150,"Mensual","Porcentaje",{"v":0.66,"d":"66%"}," Portal Web del Municipio página de transparencia","Se dispone de personal y recursos ",{"v":56413.2,"d":"56,413.2"},{"v":6000,"d":"6,000.0"},{"v":17600,"d":"17,600.0"},{"v":0,"d":"0.0"},{"v":0,"d":"0.0"},{"v":0,"d":"0.0"},{"v":0,"d":"0.0"},{"v":0,"d":"0.0"},{"v":0,"d":"0.0"},{"v":80013.2,"d":"$80,013.20"},{"v":20,"d":"$20.00"}]
[null,null,"Actividad 2.7",null,"Regularizar predios en Santa Rosa y Cedros (expedición de títulos de propiedad)","PORCENTAJE de regularización de predios (P140-RP)","Mide los avances en la elaboración del programa de regularización de predios rusticos","Eficacia","Gestión","(Cantidad de etapas (10) completas en la elaboracion de cada uno de los expedientes del programa de regularizacion de predios en Santa Rosa y Cedros  / total de etapas (6000) completadas en cada uno de los 600 predios por regularizar en  el programa de regularizacion de predios en Santa Rosa y Cedros)*100",6000,6000,"Mensual","Porcentaje",{"v":1,"d":"100%"}," Portal Web del Municipio página de transparencia","Se dispone de personal y recursos ",{"v":42309.9,"d":"42,309.9"},{"v":4500,"d":"4,500.0"},{"v":13200,"d":"13,200.0"},{"v":0,"d":"0.0"},{"v":0,"d":"0.0"},{"v":0,"d":"0.0"},{"v":0,"d":"0.0"},{"v":0,"d":"0.0"},{"v":0,"d":"0.0"},{"v":60009.9,"d":"$60,009.90"},{"v":15,"d":"$15.00"}]
[null,"Obras públicas","Componente 3",null,"Cumplimiento en Obra Pública Incrementado","Índice de cumplimiento del Programa de Obra Pública Anual (Í3-CPOPA)","Mide la cantidad de Proyectos de obra concluidos exitosamente de los que integran el programa anual infraestructura municipal","Eficacia","Gestión","(valor resultante de sumar los valores individuales  de  los cosientes entre sus denominadores por su ponderacion asignada, que miden las  variables de: rezago de infraestructura, evaluacion normatividad y cumplimiento PAO con su correspondientes ponderaciones de .4, .4,  y .2)",266.4,294.4,"Bimestral","Índice",{"v":0.9,"d":"0.90"}," Portal Web del Municipio página de transparencia","Se dispone de personal y recursos ",{"v":2244472,"d":"$2,244,472.0"},{"v":3960000,"d":"$3,960,000.0"},{"v":1903000,"d":"$1,903,000.0"},{"v":0,"d":"$0.0"},{"v":550000,"d":"$550,000.0"},{"v":18604745,"d":"$18,604,745.0"},{"v":0,"d":"$0.0"},{"v":0,"d":"$0.0"},{"v":0,"d":"$0.0"},{"v":27262217,"d":"$27,262,217.0"}]
[null,null,"Actividad 3.1",null,"Abatir en un alto porcentaje el rezago de infraestructura que presenta las localidades que conforma el Municipio de Ixtlahuacán de los Membrillos, Jalisco","PORCENTAJE de reduccion del rezago de infraestructura (P145-RRI)","Mide el avance en la disminución del rezago en infraestructura en localidades del municipio","Eficacia","Gestión","(Cantidad de obras concluidas ( 5 nuevas, 10 de manetnimiento y 8 rehabilitadas) como nuevas, de mantenimiento y rehabilitadas para dar cumplimiento al programa anual de obra en educacion, vialidades, agua potable, cultura y deporte/ Total de obras  (23) que integran el programa anual de obra)*100",64,64,"Mensual","Porcentaje",{"v":1,"d":"100%"}," Portal Web del Municipio página de transparencia","Se dispone de personal y recursos ",{"v":1122236,"d":"1,122,236.0"},{"v":1980000,"d":"1,980,000.0"},{"v":951500,"d":"951,500.0"},{"v":0,"d":"0.0"},{"v":275000,"d":"275,000.0"},{"v":9302372.5,"d":"9,302,372.5"},{"v":0,"d":"0.0"},{"v":0,"d":"0.0"},{"v":0,"d":"0.0"},{"v":13631108.5,"d":"$13,631,108.50"},{"v":50,"d":"$50.0"}]
[null,null,"Actividad 3.2",null,"Ejercer el recurso en tiempo con las modalidades establecidas en la Ley  de Obra Publica, de acuerdo al monto del recurso.","PORCENTAJE de ejercicio de recursos apegados a ley de obra pública y normatividad aplicable que cumpla con la evaluación de la calidad del marco jurídico estatal (P146-ERALOP)","Mide el cumplimiento del programa de obra separado por fuente de financiamiento y normatividad aplicable en cumplimiento de la evaluación de la calidad del marco jurídico estatal","Eficacia","Gestión","(Cantidad de etapas (10) completas en la elaboracion de cada uno de los expedientes del programa anual de obra pública  / total de etapas (640) completadas en cada uno de los 64 expedientes del programa anual de obra pública 2020)*100",570,640,"Mensual","Porcentaje",{"v":1,"d":"100%"}," Portal Web del Municipio página de transparencia","Se dispone de personal y recursos ",{"v":112223.59999999998,"d":"112,223.6"},{"v":197999.99999999997,"d":"198,000.0"},{"v":95149.99999999999,"d":"95,150.0"},{"v":0,"d":"0.0"},{"v":27499.999999999996,"d":"27,500.0"},{"v":930237.2499999999,"d":"930,237.3"},{"v":0,"d":"0.0"},{"v":0,"d":"0.0"},{"v":0,"d":"0.0"},{"v":1363110.8499999996,"d":"$1,363,110.85"},{"v":4.999999999999999,"d":"$5.0"}]
[null,null,"Actividad 3.3",null,"Programas de mantenimiento e instalaciones en planteles de preescolares y primarias, mantenimiento y construcción de casa de la cultura y teatro, rehabilitación de pavimentos en vialidades, sustitución de líneas de agua potable y cajas de valvulas,perforacion de pozos para la extracción de agua potable y sustitución de lineas de drenaje y construcción de pozos de visita.  ","PORCENTAJE de cumplimiento y avance en el programa de obra anual, mantenimiento y rehabilitacion de infraestructura (P147-CAPOAMR)","Mide el cumplimiento y avance en el programa de obra anual, de mantenimiento y rehabilitación a escuelas, instalaciones deportivas, vialidades, instalaciones de agua potable y lineas de drenaje","Eficacia","Gestión","(Cantidad de obras concluidas ( 44 nuevas, 14 de manetnimiento y 10 rehabilitadas) como nuevas, de mantenimiento y rehabilitadas para dar cumplimiento al programa anual de obra en educacion, vialidades, agua potable, cultura y deporte/ Total de obras  (64) que integran el programa anual de obra)*100",64,64,"Mensual","Porcentaje",{"v":1,"d":"100%"}," Portal Web del Municipio página de transparencia","Se dispone de personal y recursos ",{"v":1010012.4,"d":"1,010,012.4"},{"v":1782000,"d":"1,782,000.0"},{"v":856350,"d":"856,350.0"},{"v":0,"d":"0.0"},{"v":247500,"d":"247,500.0"},{"v":8372135.25,"d":"8,372,135.3"},{"v":0,"d":"0.0"},{"v":0,"d":"0.0"},{"v":0,"d":"0.0"},{"v":12267997.65,"d":"$12,267,997.65"},{"v":45,"d":"$45.0"}]
[null,"Ecología","Componente 4",null,"Condiciones Ecológicas Mejoradas","Índice de  mejora en las condiciones ecológicas del territorio municipal (T4-MCEtm)","Mide la cantidad de Direcciones municipales que hacen actividades para mejorar las condiciones ecológicas","Eficacia","Gestión","(valor resultante de sumar los valores individuales  de  los cosientes entre sus denominadores por su ponderacion asignada, que miden las  variables de: regularizacion de empresas, diagnostico y programa capacitación con su correspondientes ponderaciones de .5, .2,  y .3)",46.4,185,"Bimestral","Índice","0.25"," Portal Web del Municipio página de transparencia","Se dispone de personal y recursos ",{"v":1157263,"d":"$1,157,263.0"},{"v":17000,"d":"$17,000.0"},{"v":46000,"d":"$46,000.0"},{"v":0,"d":"$0.0"},{"v":0,"d":"$0.0"},{"v":0,"d":"$0.0"},{"v":0,"d":"$0.0"},{"v":0,"d":"$0.0"},{"v":0,"d":"$0.0"},{"v":1220263,"d":"$1,220,263.0"}]
[null,null,"Actividad 4.1",null,"Regular las empresas y establecimientos que operan en el territorio municipal que emiten algún tipo de contaminante que afecte al medio ambiente, así como reforzar en la población civil la concientización del cuidado del medio ambiente a través de talleres","PORCENTAJE de avance en el programas regularización de empresas y establecimientos en el territorio (P148-APREET)","Mide los avance de cumplimiento en los dictamenes y talleres ","Eficacia","Gestión","(Cantidad de actividades 6 (2 dictamines sobre contaminación y 4 talleres sobre medio ambientales) para mejorar la regulación de establecimientos que emiten algun tipo de contaminante al medioambiente / total de actividades (6) para mejorar la regulación de establecimientos que emiten algun tipo de contaminante al medioambiente)*100",6,6,"Mensual","Porcentaje",{"v":1,"d":"100%"}," Portal Web del Municipio página de transparencia","Se dispone de personal y recursos ",{"v":347178.9,"d":"347,178.9"},{"v":5100,"d":"5,100.0"},{"v":13800,"d":"13,800.0"},{"v":0,"d":"0.0"},{"v":0,"d":"0.0"},{"v":0,"d":"0.0"},{"v":0,"d":"0.0"},{"v":0,"d":"0.0"},{"v":0,"d":"0.0"},{"v":366078.9,"d":"$366,078.90"},{"v":30,"d":"$30.0"}]
[null,null,"Actividad 4.2",null,"Elaboración de Diagnostico para determinar la superficie de la Área Natural Protegida","PORCENTAJE de elaboración de diagnóstico de área natural protegida  municipal para sumar a la superficie estatal bajo esquemas de Área Natural Protegida  (P149-EDANP)","Mide los avances en la propuesta de área natural protegida","Eficacia","Gestión","(Cantidad de etapas (10) necesarias para terminar el diagnostico para determinar el área natural protegida municipal / Total de etapas cubiertas para  terminar el diagnostico para determinar el área natural protegida municipal (10))*100",10,10,"Mensual","Porcentaje",{"v":1,"d":"100%"}," Portal Web del Municipio página de transparencia","Se dispone de personal y recursos ",{"v":520768.35,"d":"520,768.4"},{"v":7650,"d":"7,650.0"},{"v":20700,"d":"20,700.0"},{"v":0,"d":"0.0"},{"v":0,"d":"0.0"},{"v":0,"d":"0.0"},{"v":0,"d":"0.0"},{"v":0,"d":"0.0"},{"v":0,"d":"0.0"},{"v":549118.35,"d":"$549,118.35"},{"v":45,"d":"$45.0"}]
[null,null,"Actividad 4.3",null,"Impartir un taller sobre la Importancia del Medio Ambiente y del Cambio Climático, dirigido al personal del H. Ayuntamiento.","PORCENTAJE de cumplimiento del programa sobre medioambiente y cambio climático (P150-CPSMCC)","Mide el cumplimiento y participación en el programa de capacitacion ambiental","Eficacia","Gestión","(Cantidad de personal inscrito (3) para participar en el programa de capacitacion sobre  la Importancia del Medio Ambiente y del Cambio Climático por cada una de las (46) direcciones del Ayuntamiento/total de personal en el ayutamiento (600))*100",138,600,"Mensual","Porcentaje",{"v":0.23,"d":"23%"}," Portal Web del Municipio página de transparencia","Se dispone de personal y recursos ",{"v":289315.75,"d":"289,315.8"},{"v":4250,"d":"4,250.0"},{"v":11500,"d":"11,500.0"},{"v":0,"d":"0.0"},{"v":0,"d":"0.0"},{"v":0,"d":"0.0"},{"v":0,"d":"0.0"},{"v":0,"d":"0.0"},{"v":0,"d":"0.0"},{"v":305065.75,"d":"$305,065.75"},{"v":25,"d":"$25.0"}]
[]
[{"$nulls":17},{"$f":"AD$41*$AC$44/$AD$18","v":{"$error":"#DIV/0!"}},{"$f":"AE$41*$AC$44/$AD$18","v":{"$error":"#DIV/0!"}},{"$error":"#DIV/0!"},{"$error":"#DIV/0!"},{"$error":"#DIV/0!"},{"$error":"#DIV/0!"},{"$error":"#DIV/0!"},{"$error":"#DIV/0!"},{"$error":"#DIV/0!"}]

{"sheet":"Listas","index":2,"n_rows":174,"n_cols":33,"rows_kept":174,"hidden":true}
[]
[null,"Municipio","Denominación del Programa","Categoría programática","Unidad responsable","Fin","Función","Sub-función","Alineación con objetivos superiores del PND","Alineación con objetivos secundarios del PND","Alineación con objetivos superiores del PED","Alineación con objetivos secundarios del PED","Alineación con objetivos superior del PMD","Alineación con objetivos secundario del PMD","Nivel MIR","Resumen del nivel MIR","Resumen Narrativo (objetivos)","Cantidad de Gasto","Nombre","Definición","Dimensión","Tipo","Variables","Método de Cálculo","Frecuencia de Medición","Unidad de Medida","Valores Programados","Metas","Medios de Verificación","Supuestos"]
[null,"Acatic",null,"Subsidios sujetos a reglas de operación",null,"Gobierno","Legislación","1.1.1 Legislación","México_en_Paz","1.1. Promover y fortalecer la gobernabilidad democrática","O1_Incrementar_la_sostenibilidad_del_medio_ambiente_y_la_vulnerabilidad_del_cambio_climático","O1E1 Detener y revertir la degradación del medio ambiente",null,null,"Fin","F",{"$nulls":4},"Eficacia","Estratégico",null,null,"Mensual",{"$nulls":7},"Primer semestre"]
[null,"Acatlán de Juárez",null,"Otros subsidios",null,"Desarrollo_Social","Justicia","1.1.2 Fiscalización","México_Incluyente","1.2. Garantizar la seguridad nacional","O2_Impulsar_el_desarrollo_sostenible_de_las_regiones_del_estado","O1E2 Efectuar una ordenación y manejo sostenible de los bosques",null,null,"Propósito","P",{"$nulls":4},"Eficiencia","Gestión",null,null,"Bimestral",{"$nulls":7},"Segundo semestre"]
[null,"Ahualulco de Mercado",null,"Prestación de servicios públicos",null,"Desarrollo_Económico","Coordinación_Política_de_Gobierno","1.2.1 Impartición de Justicia","México_con_Educación_de_Calidad","1.3. Mejorar las condiciones de seguridad pública","O3_Promover_un_desarrollo_urbano_sostenible_equitativo_y_ordenado","O1E3 Frenar la pérdida de diversidad biológica",null,null,"Componentes","C1",{"$nulls":4},"Economía",{"$nulls":3},"Trimestral"]
[null,"Amacueca",null,"Provisión de bienes públicos",null,"Otros","Relaciones_Exteriores","1.2.2 Procuración de Justicia","México_Próspero","1.4. Garantizar un sistema de Justicia Penal eficaz, expedito, imparcial y transparente","O4_Garantizar_el_suministro_del_agua_para_población_y_actividades_productivas","O1E4 Incrementar el manejo sustentable de los residuos",null,null,"Actividades","C2",{"$nulls":4},"Calidad",{"$nulls":3},"Semestral"]
[null,"Amatitán",null,"Planeación, Seguimiento y Evaluación de políticas Públicas",null,null,"Asuntos_Financieros_y_Hacendarios","1.2.3 Reclusión y Readaptación Social","México_Con_Responsabilidad_Global","1.5. Garantizar el respeto y protección de los derechos humanos y la erradicación de la discriminación","O5_Mejorar_la_calidad_seguridad_y_sostenibilidad_de_la_movilidad_urbana","O1E5 Incrementar la producción y uso de fuentes de energía limpias",{"$nulls":3},"C3",{"$nulls":8},"Anual"]
[null,"Ameca",null,"Promoción y fomento",null,null,"Asuntos_de_Orden_Público_y_Seguridad_Interior","1.2.4 Derechos Humanos",null,"1.6. Salvaguardar a la población, a sus bienes y a su entorno ante un desastre de origen natural o humano","O6_Disminuir_los_factores_de_riesgo_y_mejorar_la_atención_ante_desastres","O1E6 Mitigar las emisiones de gases de efecto invernadero",{"$nulls":3},"C1A1",{"$nulls":8},"Bianual"]
[null,"San Juanito de Escobedo",null,"Regulación y Supervisión",null,null,"Otros_Servicios_Generales","1.3.1 Presidencia / Gubernatura",null,"2.1. Garantizar el ejercicio efectivo de los derechos sociales para toda la población","O7_Incrementar_la_formalidad_del_empleo_la_seguridad_social_y_estabilidad_laboral","O1E7 Ordenar y proteger de manera sostenible los ecosistemas lacustres y costeros",{"$nulls":3},"C1A2",{"$nulls":8},"Bienal"]
[null,"Arandas",null,"Específicos",null,null,"Protección_Ambiental","1.3.2 Política Interior",null,"2.2. Transitar hacia una sociedad equitativa e incluyente","O8_Mejorar_la_competitividad_y_el_crecimiento_inclusivo_y_sostenible_de_los_sectores_económicos","O1E8 Reducir la contaminación de acuíferos y aguas superficiales",{"$nulls":3},"C1A3",{"$nulls":8},"Periodo"]
[null,"El Arenal",null,"Proyectos de Inversión",null,null,"Vivienda_y_Servicios_a_la_Comunidad","1.3.3 Preservación y Cuidado del Patrimonio Público",null,"2.3. Asegurar el acceso a los servicios de salud","O9_Incrementar_de_forma_sostenible_la_productividad_y_rentabilidad_de_las_actividades_del_sector_primario","O1E9 Reducir la vulnerabilidad y aumentar la resiliencia de la sociedad, las cuencas hidrológicas y los ecosistemas naturales, urbanos y agropecuarios frente a los efectos adversos del cambio climático",{"$nulls":3},"C1A4"]
[null,"Atemajac de Brizuela",null,"Apoyo al Proceso Presupuestario y para Mejorar la Eficiencia Institucional",null,null,"Salud","1.3.4 Función Pública",null,"2.4. Ampliar el acceso a la seguridad social","O10_Incrementar_la_afluencia_y_la_derrama_económica_proveniente_del_turismo","O1E10 Revertir el deterioro de la calidad del aire",{"$nulls":3},"C2A1"]
[null,"Atengo",null,"Apoyo a la Función Pública y al Mejoramiento de la Gestión",null,null,"Recreación_Cultura_y_Otras_Manifestaciones_Sociales","1.3.5 Asuntos Jurídicos",null,"2.5. Proveer un entorno adecuado para el desarrollo de una vida digna","O11_Mejorar_la_conectividad_de_Jalisco_sus_regiones_y_municipios","O2E1 Actualizar los ordenamientos ecológicos territoriales y su aplicación efectiva",{"$nulls":3},"C2A2"]
[null,"Atenguillo",null,"Operaciones Ajenas",null,null,"Educación","1.3.6 Organización de Procesos Electorales",null,"3.1. Desarrollar el potencial humano de los mexicanos con educación de calidad","O12_Reducir_la_pobreza_y_la_desigualdad","O2E2 Desarrollar el potencial humano de las regiones con acceso a una educación de calidad",{"$nulls":3},"C2A3"]
[null,"Atotonilco el Alto",null,"Obligaciones de Cumplimiento de Resolución Jurisdiccional",null,null,"Protección_Social","1.3.7 Población",null,"3.2. Garantizar la inclusión y la equidad en el Sistema Educativo","O13_Proteger_los_derechos_y_ampliar_las_oportunidades_de_desarrollo_de_los_grupos_prioritarios","O2E3 Generar oportunidades de empleos dignos aprovechando de forma sustentable las potencialidades regionales",{"$nulls":3},"C2A4"]
[null,"Atoyac",null,"Desastres Naturales",null,null,"Otros_Asuntos_Sociales","1.3.8 Territorio",null,"3.3. Ampliar el acceso a la cultura como un medio para la formación integral\n de los ciudadanos","O14_Mejorar_la_salud_de_la_población","O2E4 Incrementar y mejorar la infraestructura productiva  y social",{"$nulls":3},"C3A1"]
[null,"Autlán de Navarro",null,"Pensiones y Jubilaciones.",null,null,"Asuntos_Económicos_Comerciales_y_Laborales_Generales","1.3.9 Otros Asuntos de Orden Público y Seguridad Interior",null,"3.4. Promover el deporte de manera incluyente para fomentar una cultura\n de salud","O15_Aumentar_el_acceso_de_la_población_a_una_vivienda_digna","O2E5 Mejorar la capacidad de gestión de los funcionarios y autoridades municipales",{"$nulls":3},"C3A2"]
[null,"Ayotlán",null,"Aportaciones a la Seguiridad Social",null,null,"Agropecuaria_Silvicultura_Pesca_y_Caza","1.4.1 Relaciones Exteriores",null,"3.5.Hacer del desarrollo científico, tecnológico y la innovación pilares para el progreso económico y social sostenible","O16_Incrementar_el_acceso_la_equidad_y_la_calidad_de_la_educación","O2E6 Reducir la pobreza y la desigualdad",{"$nulls":3},"C3A3"]
[null,"Ayutla",{"$nulls":4},"Combustibles_y_Energía","1.5.1 Asuntos Financieros",null,"4.1. Mantener la estabilidad macroeconómica del país","O17_Incrementar_el_desarrollo_tecnológico_la_investigación_científica_y_la_innovación","O3E1 Conservar los suelos, incrementar las áreas verdes y las reservas territoriales",{"$nulls":3},"C4A4"]
[null,"La Barca",{"$nulls":4},"Minería_Manufacturas_y_Construcción","1.5.2 Asuntos Hacendarios",null,"4.2. Democratizar el acceso al financiamiento de proyectos con potencial de crecimiento","O18_Garantizar_el_acceso_de_toda_la_población_a_la_cultura_y_las_diferentes_expresiones_artísticas","O3E2 Impulsar un desarrollo urbano orientado al transporte sustentable"]
[null,"Bolaños",{"$nulls":4},"Transporte","1.7.1 Policía",null,"4.3. Promover el empleo de calidad","O19_Aumentar_la_práctica_del_deporte_y_actividades_físicas_de_la_población","O3E3 Incrementar y mejorar los servicios y espacios públicos"]
[null,"Cabo Corrientes",{"$nulls":4},"Comunicaciones","1.7.2 Protección Civil",null,"4.4. Impulsar y orientar un crecimiento verde incluyente y facilitador que preserve nuestro atrimonio natural al mismo tiempo que genere riqueza, competitividad y empleo","O20_Reducir_la_incidencia_delictiva_y_mejorar_la_percepción_de_seguridad","O3E4 Mejorar la conectividad y articulación de las principales ciudades con una perspectiva regional e interestatal"]
[null,"Casimiro Castillo",{"$nulls":4},"Turismo","1.7.3 Otros Asuntos de Orden Público y Seguridad",null,"4.5. Democratizar el acceso a servicios de telecomunicaciones","O21_Mejorar_la_impartición_de_justicia_con_un_sistema_eficaz_expedito_imparcial_y_transparente","O3E5 Ordenar el crecimiento de las áreas urbanas y asegurar el cumplimiento de la normatividad inherente"]
[null,"Cihuatlán",{"$nulls":4},"Ciencia_Tecnología_e_Innovación","1.7.4 Sistema Nacional de Seguridad Pública",null,"4.6. Abastecer de energía al país con precios competitivos, calidad y eficiencia a lo largo de la cadena productiva","O22_Reducir_la_impunidad_mejorando_la_imparcialidad_transparencia_y_eficiencia_en_la_procuración_de_justicia","O3E6 Promover un crecimiento urbano equitativo mediante la oferta de suelo accesible y de calidad a los sectores de menores ingresos"]
[null,"Zapotlán el Grande",{"$nulls":4},"Otras_Industrias_y_Otros_Asuntos_Económicos","1.8.1 Servicios Registrales, Administrativos y Patrimoniales",null,"4.7. Garantizar reglas claras que incentiven el desarrollo de un mercado interno competitivo","O23_Garantizar_el_respeto_y_la_protección_de_los_derechos_humanos_y_eliminar_la_discriminación","O3E7 Reducir la contaminación del agua y aire, así como la visual y auditiva"]
[null,"Cocula",{"$nulls":4},"Transacciones_de_la_Deuda_Financiera_y_Costo_Financiero_Deuda","1.8.2 Servicios Estadísticos",null,"4.8. Desarrollar los sectores estratégicos del país","O24_Mejorar_la_estabilidad_y_funcionalidad_del_sistema_democrático","O3E8 Reducir la fragmentación territorial y política en las áreas metropolitanas mediante la aplicación de un modelo de gobernanza metropolitana"]
[null,"Colotlán",{"$nulls":4},"Transferencias_Participaciones_y_Aportaciones","1.8.3 Servicios de Comunicación y Medios",null,"4.9. Contar con una infraestructura de transporte que se refleje en menores costos para realizar la actividad económica","O25_Mejorar_la_efectividad_de_las_instituciones_públicas_y_gubernamentales","O4E1 Fortalecer el desarrollo y la capacidad técnica y financiera de los organismos operadores del agua"]
[null,"Concepción de Buenos Aires",{"$nulls":4},"Saneamiento_del_Sistema_Financiero","1.8.4 Acceso a la Información Pública Gubernamental",null,"4.10. Construir un sector agropecuario y pesquero productivo que garantice la seguridad alimentaria del país","O26_Mejorar_la_igualdad_entre_los_géneros_y_empoderar_a_las_mujeres","O4E2 Incrementar los niveles de tratamiento de aguas residuales y su reutilización"]
[null,"Cuautitlán de García Barragán",{"$nulls":4},"Adeudos_Anteriores","1.8.5 Otros",null,"4.11. Aprovechar el potencial turístico de México para generar una mayor derrama económica en el país","O27_Incrementar_la_capacidad_innovadora_en_los_sectores_social_privado_y_público","O4E3 Incrementar y diversificar las fuentes de abastecimiento y captación de agua"]
[null,"Cuautla",{"$nulls":5},"2.1.1 Ordenación de Desechos",null,"5.1. Ampliar y fortalecer la presencia de México en el mundo",null,"O4E4 Mejorar la potabilización de las aguas para el consumo humano"]
[null,"Cuquío",{"$nulls":5},"2.1.2 Administración del Agua",null,"5.2. Promover el valor de México en el mundo mediante la difusión económica, turística y cultural",null,"O4E5 Modernizar y ampliar la infraestructura hidroagrícola"]
[null,"Chapala",{"$nulls":5},"2.1.3 Ordenación de Aguas Residuales, Drenaje y Alcantarillado",null,"5.3. Reafirmar el compromiso del país con el libre comercio, la movilidad de capitales y la integración productiva",null,"O4E6 Ordenar el uso y aprovechamiento del agua en cuencas y acuíferos"]
[null,"Chimaltitán",{"$nulls":5},"2.1.4 Reducción de la Contaminación",null,"5.4. Velar por los intereses de los mexicanos en el extranjero y proteger los derechos de los extranjeros en el territorio nacional",null,"O4E7 Proteger y recuperar los bosques, humedales y ríos"]
[null,"Chiquilistlán",{"$nulls":5},"2.1.5 Protección de la Diversidad Biológica y del Paisaje",{"$nulls":3},"O4E8 Reducir el desperdicio del agua y racionalizar su uso"]
[null,"Degollado",{"$nulls":5},"2.1.6 Otros de Protección Ambiental",{"$nulls":3},"O5E1 Ampliar y articular la red de transporte público masivo incentivando la multimodalidad"]
[null,"Ejutla",{"$nulls":5},"2.2.1 Urbanización",{"$nulls":3},"O5E2 Incrementar el uso de medios alternativos de traslado, desincentivando el uso del automóvil"]
[null,"Encarnación de Díaz",{"$nulls":5},"2.2.2 Desarrollo Comunitario",{"$nulls":3},"O5E3 Mejorar la infraestructura y equipamiento para la movilidad motorizada y no motorizada"]
[null,"Etzatlán",{"$nulls":5},"2.2.3 Abastecimiento de Agua",{"$nulls":3},"O5E4 Mejorar la seguridad y la cultura vial"]
[null,"El Grullo",{"$nulls":5},"2.2.4 Alumbrado Público",{"$nulls":3},"O5E5 Modernizar los sistemas de transporte público en las ciudades"]
[null,"Guachinango",{"$nulls":5},"2.2.5 Vivienda",{"$nulls":3},"O6E1 Incrementar la capacitación y profesionalización del personal de protección civil"]
[null,"Guadalajara",{"$nulls":5},"2.2.6 Servicios Comunales",{"$nulls":3},"O6E2 Incrementar la cultura de protección civil en la sociedad, el gobierno y la empresa"]
[null,"Hostotipaquillo",{"$nulls":5},"2.2.7 Desarrollo Regional",{"$nulls":3},"O6E3 Mejorar los procedimientos para disminuir los riesgos y la atención de emergencias"]
[null,"Huejúcar",{"$nulls":5},"2.3.1 Prestación de Servicios de Salud a la Comunidad",{"$nulls":3},"O6E4 Mejorar los sistemas de información de los riesgos a los que está expuesta la población y su entorno"]
[null,"Huejuquilla el Alto",{"$nulls":5},"2.3.2 Prestación de Servicios de Salud a la Persona",{"$nulls":3},"O6E5 Mejorar y establecer sistemas de alerta temprana multirriesgos"]
[null,"La Huerta",{"$nulls":5},"2.3.3 Generación de Recursos para la Salud",{"$nulls":3},"O7E1 Aumentar la disponibilidad de capital humano mejor calificado adecuado a la demanda del mercado laboral"]
[null,"Ixtlahuacán de los Membrillos",{"$nulls":5},"2.3.4 Rectoría del Sistema de Salud",{"$nulls":3},"O7E2 Erradicar el trabajo infantil"]
[null,"Ixtlahuacán del Río",{"$nulls":5},"2.3.5 Protección Social en Salud",{"$nulls":3},"O7E3 Incrementar la certificación de competencias laborales y profesionales"]
[null,"Jalostotitlán",{"$nulls":5},"2.4.1 Deporte y Recreación",{"$nulls":3},"O7E4 Incrementar la cultura empresarial de la responsabilidad social"]
[null,"Jamay",{"$nulls":5},"2.4.2 Cultura",{"$nulls":3},"O7E5 Incrementar la productividad con beneficios compartidos, la empleabilidad y la capacitación en el trabajo"]
[null,"Jesús María",{"$nulls":5},"2.4.3 Radio, Televisión y Editoriales",{"$nulls":3},"O7E6 Mejorar la protección de los derechos del trabajador"]
[null,"Jilotlán de los Dolores",{"$nulls":5},"2.4.4 Asuntos Religiosos y Otras Manifestaciones Sociales",{"$nulls":3},"O7E7 Mejorar la remuneración y las condiciones laborales de la población ocupada"]
[null,"Jocotepec",{"$nulls":5},"2.5.1 Educación Básica",{"$nulls":3},"O7E8 Propiciar el equilibrio entre empleadores y trabajadores para preservar la paz laboral"]
[null,"Juanacatlán",{"$nulls":5},"2.5.2 Educación Media Superior",{"$nulls":3},"O8E1 Aumentar las exportaciones de las unidades productivas"]
[null,"Juchitlán",{"$nulls":5},"2.5.3 Educación Superior",{"$nulls":3},"O8E2 Aumentar los niveles de innovación tecnológica, empresarial y social"]
[null,"Lagos de Moreno",{"$nulls":5},"2.5.4 Posgrado",{"$nulls":3},"O8E3 Estimular el espíritu empresarial y el desarrollo de emprendedores"]
[null,"El Limón",{"$nulls":5},"2.5.5 Educación para Adultos",{"$nulls":3},"O8E4 Facilitar el acceso al financiamiento y la asistencia técnica, especialmente a la micro y pequeña empresa"]
[null,"Magdalena",{"$nulls":5},"2.5.6 Otros Servicios Educativos y Actividades Inherentes",{"$nulls":3},"O8E5 Incrementar el desarrollo y la integración de las cadenas productivas, de proveeduría y los clústeres"]
[null,"Santa María del Oro",{"$nulls":5},"2.6.1 Enfermedad e Incapacidad",{"$nulls":3},"O8E6 Incrementar la inversión extranjera directa"]
[null,"La Manzanilla de la Paz",{"$nulls":5},"2.6.2 Edad Avanzada",{"$nulls":3},"O8E7 Mejorar e incrementar la infraestructura productiva"]
[null,"Mascota",{"$nulls":5},"2.6.3 Familia e Hijos",{"$nulls":3},"O8E8 Mejorar la calidad y la productividad de las unidades económicas"]
[null,"Mazamitla",{"$nulls":5},"2.6.4 Desempleo",{"$nulls":3},"O8E9 Simplificar los trámites y agilizar los procesos de apertura de empresas"]
[null,"Mexticacán",{"$nulls":5},"2.6.5 Alimentación y Nutrición",{"$nulls":3},"O9E1 Ampliar y modernizar la infraestructura rural productiva"]
[null,"Mezquitic",{"$nulls":5},"2.6.6 Apoyo Social para la Vivienda",{"$nulls":3},"O9E2 Aumentar la comercialización de los productos del sector primario dentro y fuera del país"]
[null,"Mixtlán",{"$nulls":5},"2.6.7 Indígenas",{"$nulls":3},"O9E3 Aumentar la industrialización y el valor agregado a la producción del sector primario"]
[null,"Ocotlán",{"$nulls":5},"2.6.8 Otros Grupos Vulnerables",{"$nulls":3},"O9E4 Incrementar el financiamiento, la capacitación y asistencia técnica a los productores rurales"]
[null,"Ojuelos de Jalisco",{"$nulls":5},"2.6.9 Otros de Seguridad Social y Asistencia Social",{"$nulls":3},"O9E5 Incrementar la producción sustentable y comercialización de la madera y sus derivados"]
[null,"Pihuamo",{"$nulls":5},"2.7.1 Otros Asuntos Sociales",{"$nulls":3},"O9E6 Mejorar la sanidad e inocuidad de los productos agropecuarios"]
[null,"Poncitlán",{"$nulls":5},"3.1.1 Asuntos Económicos y Comerciales en General",{"$nulls":3},"O10E1 Aumentar la atracción y captación de inversión en el sector"]
[null,"Puerto Vallarta",{"$nulls":5},"3.1.2 Asuntos Laborales Generales",{"$nulls":3},"O10E2 Incrementar la promoción integral de destinos y rutas turísticas"]
[null,"Villa Purificación",{"$nulls":5},"3.2.1 Agropecuaria",{"$nulls":3},"O10E3 Innovar y diversificar la oferta turística por región y destino de forma sostenible"]
[null,"Quitupan",{"$nulls":5},"3.2.2 Silvicultura",{"$nulls":3},"O10E4 Mejorar el entorno, la infraestructura y equipamiento en centros turísticos"]
[null,"El Salto",{"$nulls":5},"3.2.3 Acuacultura, Pesca y Caza",{"$nulls":3},"O10E5 Mejorar las capacidades turísticas locales y promover el emprendurismo en el sector"]
[null,"San Cristóbal de la Barranca",{"$nulls":5},"3.2.4 Agroindustrial",{"$nulls":3},"O11E1 Ampliar y modernizar la red de ferrocarriles"]
[null,"San Diego de Alejandría",{"$nulls":5},"3.2.5 Hidroagrícola",{"$nulls":3},"O11E2 Incrementar la accesibilidad a las telecomunicaciones"]
[null,"San Juan de los Lagos",{"$nulls":5},"3.2.6 Apoyo Financiero a la Banca y Seguro Agropecuario",{"$nulls":3},"O11E3 Incrementar y modernizar la red de carreteras"]
[null,"San Julián",{"$nulls":5},"3.3.1 Carbón y Otros Combustibles Minerales Sólidos",{"$nulls":3},"O11E4 Modernizar y ampliar la infraestructura aérea y la marítima"]
[null,"San Marcos",{"$nulls":5},"3.3.2 Petróleo y Gas Natural (Hidrocarburos)",{"$nulls":3},"O11E5 Propiciar la ampliación de servicios logísticos estratégicos para el desarrollo social y económico"]
[null,"San Martín de Bolaños",{"$nulls":5},"3.3.3 Combustibles Nucleares",{"$nulls":3},"O12E1 Ampliar las capacidades productivas de la población en condiciones de vulnerabilidad"]
[null,"San Martín Hidalgo",{"$nulls":5},"3.3.4 Otros Combustibles",{"$nulls":3},"O12E2 Incrementar la disponibilidad y el acceso a una adecuada alimentación de la población en condiciones de pobreza"]
[null,"San Miguel el Alto",{"$nulls":5},"3.3.5 Electricidad",{"$nulls":3},"O12E3 Mejorar el pago de impuestos y servicios públicos acorde con el nivel de vida e ingresos de la población"]
[null,"Gómez Farías",{"$nulls":5},"3.3.6 Energía no Eléctrica",{"$nulls":3},"O12E4 Mejorar la calidad y espacios en las viviendas de la población en situación de pobreza"]
[null,"San Sebastián del Oeste",{"$nulls":5},"3.4.1 Extracción de Recursos Minerales excepto los Combustibles Minerales",{"$nulls":3},"O12E5 Promover la cohesión social desde los espacios de deliberación pública, fortaleciendo las organizaciones sociales y la participación comunitaria"]
[null,"Santa María de los Ángeles",{"$nulls":5},"3.4.2 Manufacturas",{"$nulls":3},"O12E6 Reducir el rezago educativo"]
[null,"Sayula",{"$nulls":5},"3.4.3 Construcción",{"$nulls":3},"O13E1 Ampliar las capacidades productivas de los grupos prioritarios"]
[null,"Tala",{"$nulls":5},"3.5.1 Transporte por Carretera",{"$nulls":3},"O13E2 Brindar atención y acompañamiento a la población migrante"]
[null,"Talpa de Allende",{"$nulls":5},"3.5.2 Transporte por Agua y Puertos",{"$nulls":3},"O13E3 Garantizar la accesibilidad y la inclusión de las personas con discapacidad; y reducir el riego de adquirirla"]
[null,"Tamazula de Gordiano",{"$nulls":5},"3.5.3 Transporte por Ferrocarril",{"$nulls":3},"O13E4 Garantizar los derechos de los adultos mayores, incrementar su autonomía y promover el envejecimiento activo"]
[null,"Tapalpa",{"$nulls":5},"3.5.4 Transporte Aéreo",{"$nulls":3},"O13E5 Garantizar y restituir los derechos de las niñas, niños y adolescentes"]
[null,"Tecalitlán",{"$nulls":5},"3.5.5 Transporte por Oleoductos y Gasoductos y Otros Sistemas de Transporte",{"$nulls":3},"O13E6 Incrementar el ingreso, permanencia y conclusión de la formación educativa de estudiantes indígenas"]
[null,"Tecolotlán",{"$nulls":5},"3.5.6 Otros Relacionados con Transporte",{"$nulls":3},"O13E7 Mejorar la dotación de servicios públicos en las localidades con población indígena"]
[null,"Techaluta de Montenegro",{"$nulls":5},"3.6.1 Comunicaciones",{"$nulls":3},"O13E8 Reducir la violencia intrafamiliar y comunitaria"]
[null,"Tenamaxtlán",{"$nulls":5},"3.7.1 Turismo",{"$nulls":3},"O13E9 Reducir los principales riesgos sociales y de salud a los que está expuesta la población joven (alcoholismo y drogadicción, embarazos adolescente, abandono escolar)"]
[null,"Teocaltiche",{"$nulls":5},"3.7.2 Hoteles y Restaurantes",{"$nulls":3},"O14E1 Impulsar la integración y universalidad de los servicios de salud"]
[null,"Teocuitatlán de Corona",{"$nulls":5},"3.8.1 Investigación Científica",{"$nulls":3},"O14E2 Incrementar el acceso efectivo a los servicios de salud, en especial la población en condiciones de vulnerabilidad y pobreza"]
[null,"Tepatitlán de Morelos",{"$nulls":5},"3.8.2 Desarrollo Tecnológico",{"$nulls":3},"O14E3 Mejorar la calidad en la prestación de los servicios de salud"]
[null,"Tequila",{"$nulls":5},"3.8.3 Servicios Científicos y Tecnológicos",{"$nulls":3},"O14E4 Reducir el sobrepeso y la obesidad de la población"]
[null,"Teuchitlán",{"$nulls":5},"3.8.4 Innovación",{"$nulls":3},"O14E5 Reducir y controlar los factores de riesgo para la salud con enfoque preventivo a la comunidad"]
[null,"Tizapán el Alto",{"$nulls":5},"3.9.1 Comercio, Distribución, Almacenamiento y Depósito",{"$nulls":3},"O15E1 Facilitar el acceso al financiamiento para adquirir una vivienda propia a la población más vulnerable"]
[null,"Tlajomulco de Zúñiga",{"$nulls":5},"3.9.2 Otras Industrias",{"$nulls":3},"O15E2 Garantizar la aplicación de los instrumentos de planeación urbana en la construcción de fraccionamientos y para evitar asentamiento irregulares"]
[null,"Tlaquepaque",{"$nulls":5},"3.9.3 Otros Asuntos Económicos",{"$nulls":3},"O15E3 Garantizar reservas territoriales suficientes para la construcción de viviendas"]
[null,"Tolimán",{"$nulls":5},"4.1.1 Deuda Pública Interna",{"$nulls":3},"O15E4 Incrementar la efectividad de los programas sociales dirigidos a la adquisición, autoconstrucción y mejora de la vivienda"]
[null,"Tomatlán",{"$nulls":5},"4.1.2 Deuda Pública Externa",{"$nulls":3},"O15E5 Mejorar el entorno y servicios en las viviendas en zonas urbanas y rurales marginadas"]
[null,"Tonalá",{"$nulls":5},"4.2.1 Transferencias entre Diferentes Niveles y Ordenes de Gobierno",{"$nulls":3},"O15E6 Mejorar los procesos de certificación de la propiedad de la vivienda en asentamientos irregulares"]
[null,"Tonaya",{"$nulls":5},"4.2.2 Participaciones entre Diferentes Niveles y Ordenes de Gobierno",{"$nulls":3},"O16E1 Ampliar la oferta, la calidad y el acceso para realizar estudios de posgrado y de educación continua"]
[null,"Tonila",{"$nulls":5},"4.2.3 Aportaciones entre Diferentes Niveles y Ordenes de Gobierno",{"$nulls":3},"O16E2 Ampliar las oportunidades educativas, en especial la población en condiciones de vulnerabilidad y pobreza"]
[null,"Totatiche",{"$nulls":5},"4.3.1 Saneamiento del Sistema Financiero",{"$nulls":3},"O16E3 Ampliar y mejorar la enseñanza de la ciencia y la tecnología en la educación básica"]
[null,"Tototlán",{"$nulls":5},"4.3.2 Apoyos IPAB",{"$nulls":3},"O16E4 Diversificar la oferta de programas de educación superior y sus modalidades"]
[null,"Tuxcacuesco",{"$nulls":5},"4.3.3 Banca de Desarrollo",{"$nulls":3},"O16E5 Incrementar en la educación superior la movilidad de estudiantes y académicos a nivel estatal, nacional e internacional"]
[null,"Tuxcueca",{"$nulls":5},"4.3.4 Apoyo a los programas de reestructura en unidades de inversión (UDIS)",{"$nulls":3},"O16E6 Incrementar espacios educativos comunes que permitan la conjunción de esfuerzos de instituciones para mejorar la calidad y consolidar el clúster de la educación superior en el estado"]
[null,"Tuxpan",{"$nulls":5},"4.4.1 Adeudos de Ejercicios Fiscales Anteriores",{"$nulls":3},"O16E7 Incrementar la cobertura de la educación media superior y superior"]
[null,"Unión de San Antonio",{"$nulls":9},"O16E8 Mejorar el aprendizaje de un segundo idioma por parte de los estudiantes en todos los niveles educativos, particularmente el básico"]
[null,"Unión de Tula",{"$nulls":9},"O16E9 Mejorar la capacitación y actualización de docente y directivos del sistema educativo"]
[null,"Valle de Guadalupe",{"$nulls":9},"O16E10 Reducir el rezago educativo"]
[null,"Valle de Juárez",{"$nulls":9},"O16E11 Reducir la violencia en los planteles educativos"]
[null,"San Gabriel",{"$nulls":9},"O17E1 Ampliar y mejorar los instrumentos de transferencia y difusión tecnológica"]
[null,"Villa Corona",{"$nulls":9},"O17E2 Aumentar las fuentes de financiamiento para actividades de ciencia y tecnología"]
[null,"Villa Guerrero",{"$nulls":9},"O17E3 Aumentar las instituciones y empresas que realizan actividades de investigación y desarrollo tecnológico"]
[null,"Villa Hidalgo",{"$nulls":9},"O17E4 Incrementar el desarrollo de proyectos científicos tecnológicos entre los sectores académicos y las empresas"]
[null,"Cañadas de Obregón",{"$nulls":9},"O17E5 Incrementar la I+D en las empresas que exportan productos de alta tecnología"]
[null,"Yahualica de González Gallo",{"$nulls":9},"O17E6 Incrementar la investigación y el desarrollo tecnológico en las instituciones educativas"]
[null,"Zacoalco de Torres",{"$nulls":9},"O17E7 Mejorar y ampliar la formación de recursos humanos calificados en el campo de la investigación y desarrollo"]
[null,"Zapopan",{"$nulls":9},"O18E1 Diversificar y ampliar las alternativas de recreación cultural en regiones y municipios"]
[null,"Zapotiltic",{"$nulls":9},"O18E2 Garantizar la disponibilidad, seguridad y conservación de los espacios y sitios culturales"]
[null,"Zapotitlán de Vadillo",{"$nulls":9},"O18E3 Incrementar la disponibilidad de recursos humanos en el ámbito artístico"]
[null,"Zapotlán del Rey",{"$nulls":9},"O18E4 Incrementar las capacidades creativas y de producción artística de la población"]
[null,"Zapotlanejo",{"$nulls":9},"O18E5 Mejorar las condiciones materiales, humanas e institucionales vinculadas a la cultura"]
[null,"San Ignacio Cerro Gordo",{"$nulls":9},"O19E1 Acrecentar la capacitación y formación de instructores y entrenadores en actividades físicas y deportivas"]
[{"$nulls":11},"O19E2 Incrementar la práctica de actividades físicas y deportivas en todos los niveles educativos, y la población en general"]
[{"$nulls":11},"O19E3 Incrementar y mejorar los espacios para la práctica de actividades físicas y deportivas"]
[{"$nulls":11},"O19E4 Mejorar y ampliar el sistema estatal del deporte de alto rendimiento"]
[{"$nulls":11},"O19E5 Promover la práctica del deporte competitivo en el ámbito local, regional y estatal"]
[{"$nulls":11},"O20E1 Fortalecer las capacidades y equipamiento de los cuerpos de seguridad pública"]
[{"$nulls":11},"O20E2 Garantizar la honestidad, confianza y el profesionalismo del personal que labora en las instituciones de seguridad pública y privada a través de un sistema adecuado de evaluación"]
[{"$nulls":11},"O20E3 Incrementar el acceso de la población a las actividades culturales, deportivas y recreativas"]
[{"$nulls":11},"O20E4 Incrementar el nivel de denuncia ciudadana y su correcta atención"]
[{"$nulls":11},"O20E5 Incrementar la participación ciudadana en la prevención del delito"]
[{"$nulls":11},"O20E6 Intensificar y mejorar la comunicación en materia de prevención del delito y combate a la inseguridad"]
[{"$nulls":11},"O21E1 Concluir y consolidar el nuevo sistema penal acusatorio"]
[{"$nulls":11},"O21E2 Disminuir la incidencia de los actos de corrupción"]
[{"$nulls":11},"O21E3 Facilitar el acceso de la justicia a nivel local y regional"]
[{"$nulls":11},"O21E4 Incrementar el uso de métodos alternativos de solución de conflictos"]
[{"$nulls":11},"O21E5 Mejorar el sistema penal con el propósito de reducir la sobrepoblación penitenciaria"]
[{"$nulls":11},"O21E6 Mejorar la capacitación y formación de los recursos humanos del poder judicial"]
[{"$nulls":11},"O21E7 Proporcionar asistencia y representación eficaz a las víctimas con perspectiva de derechos humanos"]
[{"$nulls":11},"O22E1 Aumentar la probabilidad de captura y condena por delitos cometidos"]
[{"$nulls":11},"O22E2 Disminuir la incidencia de los actos de corrupción"]
[{"$nulls":11},"O22E3 Investigar y perseguir el delito con mayor eficacia"]
[{"$nulls":11},"O22E4 Mejorar la calidad de los servicios que prestan los ministerios públicos"]
[{"$nulls":11},"O22E5 Mejorar la capacitación y formación de los recursos humanos para la procuración de justicia"]
[{"$nulls":11},"O22E6 Mejorar la percepción ciudadana sobre el quehacer del sistema de procuración de justicia"]
[{"$nulls":11},"O23E1 Disminuir la incidencia de las violaciones a los Derechos Humanos"]
[{"$nulls":11},"O23E2 Mejorar la atención a las víctimas de violaciones a los derechos humanos"]
[{"$nulls":11},"O23E3 Reducir la violencia y discriminación, particularmente aquella ejercida en contra de grupos en situación de vulnerabilidad"]
[{"$nulls":11},"O24E1 Contribuir al desarrollo democrático social y político"]
[{"$nulls":11},"O24E2 Incrementar la participación ciudadana en asuntos públicos y en organizaciones civiles y comunitarias"]
[{"$nulls":11},"O24E3 Mejorar la coordinación de los tres órdenes y niveles de gobierno"]
[{"$nulls":11},"O24E4 Prevenir y gestionar conflictos sociales a través del diálogo constructivo"]
[{"$nulls":11},"O25E1 Disminuir la incidencia de los actos de corrupción"]
[{"$nulls":11},"O25E2 Impulsar un gobierno abierto, promotor de la transparencia, la rendición de cuentas, la participación ciudadana y del uso de las tecnologías de información y comunicación"]
[{"$nulls":11},"O25E3 Incrementar la disponibilidad de recursos financieros y mejorar su uso y asignación"]
[{"$nulls":11},"O25E4 Mejorar la calidad y disponibilidad de información para la toma de decisiones de la sociedad y el gobierno"]
[{"$nulls":11},"O25E5 Mejorar la calidad y la prestación de servicios públicos"]
[{"$nulls":11},"O25E6 Mejorar la capacitación y profesionalización de los funcionarios y servidores públicos"]
[{"$nulls":11},"O25E7 Mejorar la planeación, programación, el seguimiento y la evaluación para una gestión pública eficiente orientada a resultados"]
[{"$nulls":11},"O26E1 Asegurar el acceso igualitario a la justicia"]
[{"$nulls":11},"O26E2 Garantizar el acceso universal a la salud reproductiva y sexual"]
[{"$nulls":11},"O26E3 Incrementar el acceso a la educación de niñas y mujeres"]
[{"$nulls":11},"O26E4 Incrementar la participación de las mujeres en cargos públicos y en puestos de elección popular"]
[{"$nulls":11},"O26E5 Incrementar las oportunidades laborales dignas para las mujeres, en particular las mujeres jefas de familia"]
[{"$nulls":11},"O26E6 Reducir la violencia contra las mujeres"]
[{"$nulls":11},"O27E1 Crear espacios físicos y virtuales, y otros mecanismos de diálogo y reflexión para generar soluciones innovadoras a problemas públicos y sociales"]
[{"$nulls":11},"O27E2 Desarrollar alianzas y redes entre empresas, gobierno, grupos sociales y universidades para impulsar la innovación, el emprendurismo y la creatividad que genere la creación de valor público y económico"]
[{"$nulls":11},"O27E3 Incrementar las actividades de investigación y desarrollo, principalmente en el sector agropecuario, la industria alimentaria, la industria creativa y la biotecnológica"]
[{"$nulls":11},"O27E4 Promover la innovación en el sector gubernamental en todos los órdenes y niveles de gobierno"]

{"sheet":"Base","index":3,"n_rows":1,"n_cols":60,"rows_kept":1,"hidden":true}
["ID","Ente auditable","Denominación del Programa","Categoría programática","Unidad Responsable","Finalidad","Función","Sub-función","Alineación con objetivos superiores del PND","Alineación con objetivos secundarios del PND","Alineación con objetivos superiores del PED","Alineación con objetivos secundarios del PED","Alineación con objetivos superiores del PMD","Alineación con objetivos secundarios del PMD","Nivel MIR","Código del nivel MIR","Resumen Narrativo (objetivos)","Nombre del indicador","Definición del indicador","Dimensión del indicador","Tipo de indicador","Método de Cálculo del indicador","Valor programado 1 (Numerador)","Valor programado 2 (Denominador)","Frecuencia de Medición del indicador","Unidad de Medida del indicador","Metas del indicador","Medios de Verificación del indicador","Supuestos del indicador","Capítulo 1000","Capítulo 2000","Capítulo 3000","Capítulo 4000","Capítulo 5000","Capítulo 6000","Capítulo 7000","Capítulo 8000","Capítulo 9000","Avance 1er Semestre del Valor programado 1 (Numerador)","Avance 1er Semestre del Valor programado 2 (Denominador)","Avance Anual del Valor programado 1 (Numerador)","Avance Anual del Valor programado 2 (Denominador)","Avance 1er Semestre del Capítulo 1000","Avance 1er Semestre del Capítulo 2000","Avance 1er Semestre del Capítulo 3000","Avance 1er Semestre del Capítulo 4000","Avance 1er Semestre del Capítulo 5000","Avance 1er Semestre del Capítulo 6000","Avance 1er Semestre del Capítulo 7000","Avance 1er Semestre del Capítulo 8000","Avance 1er Semestre del Capítulo 9000","Avance Anual del Capítulo 1000","Avance Anual del Capítulo 2000","Avance Anual del Capítulo 3000","Avance Anual del Capítulo 4000","Avance Anual del Capítulo 5000","Avance Anual del Capítulo 6000","Avance Anual del Capítulo 7000","Avance Anual del Capítulo 8000","Avance Anual del Capítulo 9000"]

{"sheet":"SUSTENTO INDICADOR ATC","index":4,"n_rows":166,"n_cols":20,"rows_kept":166,"merged":[[1,1,1,15],[3,5,3,15],[5,2,6,3],[5,5,6,15],[8,2,9,3],[8,5,9,15],[13,2,13,9],[13,11,13,15],[14,11,16,15],[23,2,23,4],[23,5,23,6],[23,7,23,8],[23,9,23,11],[23,12,23,13],[23,15,23,16],[23,18,23,19],[24,1,28,1],[24,2,27,4],[24,5,27,6],[24,7,27,8],[24,9,27,11],[24,12,27,13],[24,14,27,14],[24,15,27,16],[24,17,27,17],[28,2,28,4],[28,17,28,19],[29,1,32,1],[29,2,32,4],[29,5,32,6],[29,7,32,8],[29,9,32,11],[29,12,30,13],[29,14,30,14],[29,15,32,16],[29,17,30,17],[31,12,32,13],[31,14,32,14],[31,17,32,17],[33,1,34,1],[33,2,34,3],[33,4,34,17],[33,18,48,19],[35,1,36,1],[35,2,36,3],[37,1,38,1],[37,2,38,3],[39,1,40,1],[39,2,40,3],[41,1,42,1],[41,2,42,3],[43,1,44,1],[43,2,44,3],[45,1,46,1],[45,2,46,3],[47,1,48,1],[47,2,48,3],[51,2,51,9],[52,4,52,6],[52,7,52,9],[82,2,82,5],[82,6,83,15],[85,5,86,15],[90,2,90,10],[90,14,90,15],[92,14,108,15],[113,2,113,5],[113,6,114,15],[116,5,117,15],[121,2,121,10],[121,14,121,15],[123,14,127,15],[132,2,132,5],[132,6,133,15],[135,5,136,15],[140,2,140,10],[140,14,140,15],[142,14,146,15],[151,2,151,5],[151,6,152,15],[154,5,155,15],[159,2,159,10],[159,14,159,15],[161,14,165,15]]}
[]
[null,"Municipio de Ixtlahuacán de los Membrillos, Jal."]
[]
[null,null,"DIRECCION MUNICIPAL:",null,null,"ATENCION CIUDADANA"]
[]
[null,null,"NOMBRE DEL PROGRAMA PRESUPUESTARIO:",null,null,"Desarrollo Social Municipal"]
[]
[]
[null,null,"NOMBRE DEL INDICADOR ESTRATEGICO:",null,null,"Índice de avance en el combate a la marginación municipal (IMNM)"]
[]
[]
[{"$nulls":5},"AÑO: ",2018,2019,2020,2021]
[]
[null,null,"AVANCE BIMESTRAL",{"$nulls":8},"Criterios para determinar avance de porcentaje de metas"]
[null,null,"Proyectos a desarrollar",null,"1ro.","2do.","3ro.","4to.","5to.","6to.",null,"En la MIR se establecen los proyectos que ha programado la dirección para cumplir con el indicador estrategico  durante la administración, con el cumplimiento al 100% de ellos y sus 16 variables dara cumplimiento a las meta individuales y de la dirección que constituyen el indicador estrategico o de evaluacion del exito ejercico el presupuesto asignado a la direccion y a cada proyecto y sus actividades, los informes bimensuales seran la suma de los valores relativos de cada bimestre que se va acumulando, hasta llegar al último bimestre de trabajo para su cumplimiento."]
[null,null,"Atención Ciudadana Incrementada","TASA de atención ciudadana (T12-AC)",5,9.62]
[null,1.1,"Eficientizar el programa adaptado en la nube para la pronta atención de los reportes recibidos.","PORCENTAJE de atención concluida a reportes recibidos (P90-ACRR)",{"v":0.2,"d":"20%"},{"v":0.57,"d":"57%"}]
[]
[]
[]
[null,null,"VALOR BIMESTRAL DEL INDICADOR",null,{"$f":"SUM(E17:E20)","v":{"v":0.2,"d":"20%"}},{"$f":"F17","v":{"v":0.57,"d":"57%"}}]
[]
[]
[null,null,"Proyectos a Desarrollar",null,null,"Nombre del indicador",null,"Definición",null,"Método de cálculo",null,null,"Valor programado 1 (Numerador)",null,"Valor programado 2 (Denominador)","Frecuencia de medición",null,"Meta","Caracteristicas del Indicador"]
[null,"Propósito","Atención Ciudadana Incrementada",null,null,"TASA de atención ciudadana (T12-AC)","TASA de atención ciudadana (T12-AC)","Mide el aumento en la relación de solicitudes de atencion a la ciudadania","Mide el aumento en la relación de solicitudes de atencion a la ciudadania","(Tasa de solicitudes ciudadanas resueltas satisfactoriamente por la direccion que atienede el tema relacionado por cada 100 habitantes     ","(Tasa de solicitudes recibidas y dirigidas a la direccion que atienede el tema relacionado y resueltas satisfactoriamente por cada 100 solicitudes     ","(Tasa de solicitudes recibidas y dirigidas a la direccion que atienede el tema relacionado y resueltas satisfactoriamente por cada 100 solicitudes     ",20,null,208,"Bimestral",null,{"$f":"(M25/O25)*100","v":{"v":9.615384615384617,"d":"9.62"}},"Eficacia","Dimensión"]
[{"$nulls":5},"TASA de atención ciudadana (T12-AC)","TASA de atención ciudadana (T12-AC)","Mide el aumento en la relación de solicitudes de atencion a la ciudadania","Mide el aumento en la relación de solicitudes de atencion a la ciudadania","(Tasa de solicitudes recibidas y dirigidas a la direccion que atienede el tema relacionado y resueltas satisfactoriamente por cada 100 solicitudes     ","(Tasa de solicitudes recibidas y dirigidas a la direccion que atienede el tema relacionado y resueltas satisfactoriamente por cada 100 solicitudes     ","(Tasa de solicitudes recibidas y dirigidas a la direccion que atienede el tema relacionado y resueltas satisfactoriamente por cada 100 solicitudes     ",{"$nulls":6},"Estratégico","Tipo"]
[{"$nulls":5},"TASA de atención ciudadana (T12-AC)","TASA de atención ciudadana (T12-AC)","Mide el aumento en la relación de solicitudes de atencion a la ciudadania","Mide el aumento en la relación de solicitudes de atencion a la ciudadania","(Tasa de solicitudes recibidas y dirigidas a la direccion que atienede el tema relacionado y resueltas satisfactoriamente por cada 100 solicitudes     ","(Tasa de solicitudes recibidas y dirigidas a la direccion que atienede el tema relacionado y resueltas satisfactoriamente por cada 100 solicitudes     ","(Tasa de solicitudes recibidas y dirigidas a la direccion que atienede el tema relacionado y resueltas satisfactoriamente por cada 100 solicitudes     ",{"$nulls":6},"Bimestral","Frecuencia de medición"]
[{"$nulls":5},"TASA de atención ciudadana (T12-AC)","TASA de atención ciudadana (T12-AC)","Mide el aumento en la relación de solicitudes de atencion a la ciudadania","Mide el aumento en la relación de solicitudes de atencion a la ciudadania","(Tasa de solicitudes recibidas y dirigidas a la direccion que atienede el tema relacionado y resueltas satisfactoriamente por cada 100 solicitudes     ","(Tasa de solicitudes recibidas y dirigidas a la direccion que atienede el tema relacionado y resueltas satisfactoriamente por cada 100 solicitudes     ","(Tasa de solicitudes recibidas y dirigidas a la direccion que atienede el tema relacionado y resueltas satisfactoriamente por cada 100 solicitudes     ",{"$nulls":6},"Índice","Unidad de medida"]
[null,null,"Calendario de ejecución",null,null,"Enero","Feb","Mzo","Abril","Mayo","Jun","Jul","Agosto","Sept","Oct","Nov","Dic"]
[null,"Componente 1","Eficientizar el programa adaptado en la nube para la pronta atención de los reportes recibidos.","Eficientizar el programa adaptado en la nube para la pronta atención de los reportes recibidos.","Eficientizar el programa adaptado en la nube para la pronta atención de los reportes recibidos.","PORCENTAJE de atención concluida a reportes recibidos (P90-ACRR)","PORCENTAJE de atención concluida a reportes recibidos (P90-ACRR)","Mide el incremento en la conclusion exitosa de solicitudes de apoyo ","Mide el incremento en la conclusion exitosa de solicitudes de apoyo ","(Cantidad de solicitudes y reportes de apoyo  (104) recibidas en la direccion de atencion a la ciudadania en el año, colocadas en el programa adaptado en la nube para su seguimiento y solución exitosa por la direccion directamente involucrada en su atención durante el año / Total de solicitudes y reportes de apoyo  (104) recibidas en la direccion de atencion a la ciudadania durante el año y que se a dado seguimiento a su solución por la direccion directamente involucrada)*100","(Cantidad de solicitudes y reportes de apoyo  (15) recibidas en la direccion de atencion a la ciudadania por mes y colocadas en el programa adaptado en la nube para su seguimiento y resolución por la direccion directamente involucrada en el transcurso de dicho mes / Total de solicitudes y reportes de apoyo  (15) recibidas en la direccion de atencion a la ciudadania por mes y que se a dado puntual seguimiento a su solución por la direccion directamente involucrada)*100","(Cantidad de solicitudes y reportes de apoyo  (15) recibidas en la direccion de atencion a la ciudadania por mes y colocadas en el programa adaptado en la nube para su seguimiento y resolución por la direccion directamente involucrada en el transcurso de dicho mes / Total de solicitudes y reportes de apoyo  (15) recibidas en la direccion de atencion a la ciudadania por mes y que se a dado puntual seguimiento a su solución por la direccion directamente involucrada)*100",40,null,104,"Mensual",null,{"$f":"M30/O30","v":{"v":0.38461538461538464,"d":"38.46%"}},"Eficacia","Dimensión"]
[null,null,"Eficientizar el programa adaptado en la nube para la pronta atención de los reportes recibidos.","Eficientizar el programa adaptado en la nube para la pronta atención de los reportes recibidos.","Eficientizar el programa adaptado en la nube para la pronta atención de los reportes recibidos.","PORCENTAJE de atención concluida a reportes recibidos (P90-ACRR)","PORCENTAJE de atención concluida a reportes recibidos (P90-ACRR)","Mide el incremento en la conclusion exitosa de solicitudes de apoyo ","Mide el incremento en la conclusion exitosa de solicitudes de apoyo ","(Cantidad de solicitudes y reportes de apoyo  (15) recibidas en la direccion de atencion a la ciudadania por mes y colocadas en el programa adaptado en la nube para su seguimiento y resolución por la direccion directamente involucrada en el transcurso de dicho mes / Total de solicitudes y reportes de apoyo  (15) recibidas en la direccion de atencion a la ciudadania por mes y que se a dado puntual seguimiento a su solución por la direccion directamente involucrada)*100","(Cantidad de solicitudes y reportes de apoyo  (15) recibidas en la direccion de atencion a la ciudadania por mes y colocadas en el programa adaptado en la nube para su seguimiento y resolución por la direccion directamente involucrada en el transcurso de dicho mes / Total de solicitudes y reportes de apoyo  (15) recibidas en la direccion de atencion a la ciudadania por mes y que se a dado puntual seguimiento a su solución por la direccion directamente involucrada)*100","(Cantidad de solicitudes y reportes de apoyo  (15) recibidas en la direccion de atencion a la ciudadania por mes y colocadas en el programa adaptado en la nube para su seguimiento y resolución por la direccion directamente involucrada en el transcurso de dicho mes / Total de solicitudes y reportes de apoyo  (15) recibidas en la direccion de atencion a la ciudadania por mes y que se a dado puntual seguimiento a su solución por la direccion directamente involucrada)*100",{"$nulls":6},"Gestión","Tipo"]
[null,null,"Eficientizar el programa adaptado en la nube para la pronta atención de los reportes recibidos.","Eficientizar el programa adaptado en la nube para la pronta atención de los reportes recibidos.","Eficientizar el programa adaptado en la nube para la pronta atención de los reportes recibidos.","PORCENTAJE de atención concluida a reportes recibidos (P90-ACRR)","PORCENTAJE de atención concluida a reportes recibidos (P90-ACRR)","Mide el incremento en la conclusion exitosa de solicitudes de apoyo ","Mide el incremento en la conclusion exitosa de solicitudes de apoyo ","(Cantidad de solicitudes y reportes de apoyo  (15) recibidas en la direccion de atencion a la ciudadania por mes y colocadas en el programa adaptado en la nube para su seguimiento y resolución por la direccion directamente involucrada en el transcurso de dicho mes / Total de solicitudes y reportes de apoyo  (15) recibidas en la direccion de atencion a la ciudadania por mes y que se a dado puntual seguimiento a su solución por la direccion directamente involucrada)*100","(Cantidad de solicitudes y reportes de apoyo  (15) recibidas en la direccion de atencion a la ciudadania por mes y colocadas en el programa adaptado en la nube para su seguimiento y resolución por la direccion directamente involucrada en el transcurso de dicho mes / Total de solicitudes y reportes de apoyo  (15) recibidas en la direccion de atencion a la ciudadania por mes y que se a dado puntual seguimiento a su solución por la direccion directamente involucrada)*100","(Cantidad de solicitudes y reportes de apoyo  (15) recibidas en la direccion de atencion a la ciudadania por mes y colocadas en el programa adaptado en la nube para su seguimiento y resolución por la direccion directamente involucrada en el transcurso de dicho mes / Total de solicitudes y reportes de apoyo  (15) recibidas en la direccion de atencion a la ciudadania por mes y que se a dado puntual seguimiento a su solución por la direccion directamente involucrada)*100",{"$f":"R37+R39+R41+R43+R45+R47+R49","v":4.03},null,{"$f":"R36+R38+R40+R42+R44+R46+R48","v":7},null,null,{"$f":"M32/O32","v":{"v":0.5757142857142857,"d":"57.57%"}},"Bimestral","Frecuencia de medición"]
[null,null,"Eficientizar el programa adaptado en la nube para la pronta atención de los reportes recibidos.","Eficientizar el programa adaptado en la nube para la pronta atención de los reportes recibidos.","Eficientizar el programa adaptado en la nube para la pronta atención de los reportes recibidos.","PORCENTAJE de atención concluida a reportes recibidos (P90-ACRR)","PORCENTAJE de atención concluida a reportes recibidos (P90-ACRR)","Mide el incremento en la conclusion exitosa de solicitudes de apoyo ","Mide el incremento en la conclusion exitosa de solicitudes de apoyo ","(Cantidad de solicitudes y reportes de apoyo  (15) recibidas en la direccion de atencion a la ciudadania por mes y colocadas en el programa adaptado en la nube para su seguimiento y resolución por la direccion directamente involucrada en el transcurso de dicho mes / Total de solicitudes y reportes de apoyo  (15) recibidas en la direccion de atencion a la ciudadania por mes y que se a dado puntual seguimiento a su solución por la direccion directamente involucrada)*100","(Cantidad de solicitudes y reportes de apoyo  (15) recibidas en la direccion de atencion a la ciudadania por mes y colocadas en el programa adaptado en la nube para su seguimiento y resolución por la direccion directamente involucrada en el transcurso de dicho mes / Total de solicitudes y reportes de apoyo  (15) recibidas en la direccion de atencion a la ciudadania por mes y que se a dado puntual seguimiento a su solución por la direccion directamente involucrada)*100","(Cantidad de solicitudes y reportes de apoyo  (15) recibidas en la direccion de atencion a la ciudadania por mes y colocadas en el programa adaptado en la nube para su seguimiento y resolución por la direccion directamente involucrada en el transcurso de dicho mes / Total de solicitudes y reportes de apoyo  (15) recibidas en la direccion de atencion a la ciudadania por mes y que se a dado puntual seguimiento a su solución por la direccion directamente involucrada)*100",{"$nulls":6},"Porcentaje","Unidad de medida"]
[null,"Actividad 1","ATENCION CIUDADANA (VENTANILLA)\n\n"]
[]
[null,"Actividad 1.1","Se recibe al ciudadano y /o llamada",null,"P",20,15,8,0,15,10,10,8,3,1,5,5,{"$f":"SUM($F36:$Q36)/100","v":1}]
[{"$nulls":4},"E",20,15,8,0,15,0,0,0,0,0,0,0,0.58]
[null,"Actividad 1.2","Se toma el reporte",null,"P",20,15,8,0,15,10,10,8,3,1,5,5,1]
[{"$nulls":4},"E",20,15,8,0,15,0,0,0,0,0,0,0,0.58]
[null,"Actividad 1.3","Se entrega folio al ciudadano",null,"P",20,15,8,0,15,10,10,8,3,1,5,5,1]
[{"$nulls":4},"E",20,15,8,0,15,0,0,0,0,0,0,0,0.58]
[null,"Actividad 1.4","Canalizamos el reporte al área correspondiente para su atención",null,"P",20,15,8,0,15,10,10,8,3,1,5,5,1]
[{"$nulls":4},"E",20,15,8,0,15,0,0,0,0,0,0,0,0.58]
[null,"Actividad 1.5","Registramos  el reporte y folio en la plataforma",null,"P",20,15,8,0,15,10,10,8,3,1,5,5,1]
[{"$nulls":4},"E",20,15,8,0,15,0,0,0,0,0,0,0,0.58]
[null,"Actividad 1.6","Monitoreo diario y seguimiento a la solución del reporte.",null,"P",20,15,8,0,15,10,10,8,3,1,5,5,1]
[{"$nulls":4},"E",20,15,8,0,15,0,0,0,0,0,0,0,0.58]
[null,"Actividad 1.7","Informe de la solución positiva o negativa del reporte y termino del folio.",null,"P",20,15,8,0,15,10,10,8,3,1,5,5,1]
[{"$nulls":4},"E",10,18,10,7,10,0,0,0,0,0,0,0,0.55]
[]
[null,null,"P : Programado  /  E: Ejecutado"]
[null,null,"SEMAFORO DE CUMPLIMIENTO DE LOS PROYECTOS  y DE LA DIRECCION"]
[null,null,"Avance en tiempo","Avance  relativo","Avances limitado",null,null,"Con Tiempo"]
{"$rows_empty":29}
[null,null,"NOMBRE DEL PROGRAMA PRESUPUESTARIO:",{"$nulls":3},"SISTEMA DE EVALUACION Y DESEMPEÑO E INFORME"]
[]
[]
[null,null,"NOMBRE DEL INDICADOR:",null,null,"INDICE DE IMPLEMENTACIÓN DEL SISTEMA DE EVALUACIÓN DEL DESEMPEÑO E INFORME"]
[]
[]
[{"$nulls":5},"AÑO: ",2019]
[]
[null,null,"AVANCE TRIMESTRAL",{"$nulls":11},"Criterios para determinar avance de porcentaje de metas"]
[null,null,"VARIABLES",null,null,"1ro.","2do.",null,null,"3ro.","4to."]
[null,1,"número de reportes programados",null,null,9,{"$nulls":8},"Las metas de este indicador son muy especificas, hacer reportes, documentos y avances, en funcion de que estos han sido terminados y entregados o subidos a la pagina de la CEPLAP, se dan por terminadas las metas y por lo tanto cumplidos los valores de las variables                                                                                                                                                                                                                                                                      \n15 (3/9)    +   10  (59/59)   +   15 (3/4)     +  10 (0/1)   +  15 (0/1)   +   10(2/5 )+ 15(1/1)+ 10(2/3)= 0.516\n"]
[null,2,"número de reportes generados",null,null,3]
[null,3,"número de documentos programados para el desarrollo del psge",null,null,59]
[null,4,"número de documentos realizados para el desarrollo del psge",null,null,59]
[null,5,"número de documentos programados para la implementación del sed y seguimiento al diagnóstico de shcp",null,null,4]
[null,6,"número de documentos generados para la implementación del sed y seguimiento al diagnóstico de shcp",null,null,3]
[null,7,"número de reportes  programados para el seguimiento de la coespo/número de reportes realizados para el seguimiento de la coespo",null,null,1]
[null,8,"número de reportes realizados para el seguimiento de la coespo",null,null,0]
[null,9,"número de actividades programadas para el cumplimiento del psge",null,null,1]
[null,10,"número de actividades realizadas para el cumplimiento del psge",null,null,0]
[null,11,"número de acciones programadas para la presentación de actividades ",null,null,5]
[null,12,"número de acciones realizadas para la presentación de actividades",null,null,2]
[null,13,"actividades realizadas para la implementación del sed",null,null,1]
[null,14,"actividades programadas  para la implementación del sed",null,null,1]
[null,15,"número de acciones realizadas parala evaluación externa de resultados de impacto de los fondos federales",null,null,3]
[null,16,"número de acciones programadas parala evaluación externa de resultados de impacto de los fondos federales",null,null,2]
[null,null,"VALOR DEL INDICADOR",null,null,0.516,0,null,null,0,0]
[]
[]
[]
[]
[null,null,"NOMBRE DEL PROGRAMA PRESUPUESTARIO:"]
[]
[]
[null,null,"NOMBRE DEL INDICADOR:"]
[]
[]
[{"$nulls":5},"AÑO: ",2016]
[]
[null,null,"AVANCE TRIMESTRAL",{"$nulls":11},"Criterios para determinar avance de porcentaje de metas"]
[null,null,"VARIABLES",null,null,"1ro.","2do.",null,null,"3ro.","4to."]
[null,null,"Número de Apoyos entregados"]
[null,null,"Total de solicitudes de apoyo recibidas"]
[null,null,"NOMBRE DE LA VARIABLE N"]
[null,null,"ETC.."]
[null,null,"VALOR DEL INDICADOR",null,null,0,0,null,null,0,0]
[]
[]
[]
[]
[null,null,"NOMBRE DEL PROGRAMA PRESUPUESTARIO:"]
[]
[]
[null,null,"NOMBRE DEL INDICADOR:"]
[]
[]
[{"$nulls":5},"AÑO: ",2016]
[]
[null,null,"AVANCE TRIMESTRAL",{"$nulls":11},"Criterios para determinar avance de porcentaje de metas"]
[null,null,"VARIABLES",null,null,"1ro.","2do.",null,null,"3ro.","4to."]
[null,null,"Número de Apoyos entregados",null,null,0,35,null,null,0,0]
[null,null,"Total de solicitudes de apoyo recibidas",null,null,0,51,null,null,0,0]
[null,null,"NOMBRE DE LA VARIABLE N"]
[null,null,"ETC.."]
[null,null,"VALOR DEL INDICADOR",null,null,0,0,null,null,0,0]
[]
[]
[]
[]
[null,null,"NOMBRE DEL PROGRAMA PRESUPUESTARIO:"]
[]
[]
[null,null,"NOMBRE DEL INDICADOR:"]
[]
[]
[{"$nulls":5},"AÑO: ",2016]
[]
[null,null,"AVANCE TRIMESTRAL",{"$nulls":11},"Criterios para determinar avance de porcentaje de metas"]
[null,null,"VARIABLES",null,null,"1ro.","2do.",null,null,"3ro.","4to."]
[null,null,"Número de Apoyos entregados",null,null,0,35,null,null,0,0]
[null,null,"Total de solicitudes de apoyo recibidas",null,null,0,51,null,null,0,0]
[null,null,"NOMBRE DE LA VARIABLE N"]
[null,null,"ETC.."]
[null,null,"VALOR DEL INDICADOR",null,null,0,0,null,null,0,0]